Workbook

Sheet CD A wn
G3: ENSAYO DE CORTE DIRECTO
U5: galleta A
D6: Proyecto: | H6: Cliente | L6: Muestra | M6: Muestra 17
D7: Sondeo: | E7: Sondeo 6 | H7: Profundidad: | J7: A | L7: Fecha
B8: Galleta 1 | D8: Galleta : | E8: A | R8: INGERCIVIL LTDA
D9: Tipo Muestra:
R10: Ensayos de Consolidacion Unidimensional
E11: Descripcion de la muestra
E13: Diámetro (cm) | G13: 4.50 | K13: Humedad natural | L13: Inicial | M13: Final
B14: DIAMETROS | E14: Altura (cm) | G14: 2.80 | K14: Recipiente
A15: 5 | B15: 5 | C15: =+(A15+B15)/2 -> 5 | E15: Peso del anillo + muestra (g) | K15: Peso recipiente (g)
A16: 5 | B16: 5 | C16: 5 | E16: Peso del anillo (g) | K16: Peso rec + m. humeda (g)
A17: 5 | B17: 5 | C17: 5 | E17: Peso de la muestra (g) | G17: =+G15-G16 -> 0.00 | K17: Peso rec + m. seca (g)
B18: ALTURAS | E18: Peso seco (g) | G18: =+G22*G20 -> 0.00 | K18: Wn (%) | L18: 29.00% | M18: 33.00%
A19: 2.18 | B19: 2.18 | C19: 2.18 | E19: Area (cm2) | G19: =+(PI()*G13^2)/4 -> 15.90
A20: 2.18 | B20: 2.18 | C20: 2.18 | E20: Volumen (cm3) | G20: =+G14*G19 -> 44.53
A21: 2.18 | B21: 2.18 | C21: 2.18 | E21: Peso unitario total (g/cm3) | G21: =+G17/G20 -> 0.00
E22: Peso unitario seco (g/cm3 | G22: =+G21/(1+(L18)) -> 0.00
B23: 52.42 | E23: Altura final (despues del ensayo de corte) | G23: =+G14-(G206/10) -> 2.79
B25: 322.87 | E25: Pesa de carga (kg) | I25: Peso piedra porosa (kg) | L25: =+M25/1000 -> 0.0000
B26: 289.4 | E26: Carga normal (kg) | H26: 8 | I26: Velocidad de corte (mm/min)
E27: Esfuerzo normal inicial (kg/cm2) | H27: =+H26/G19 -> 0.50 | I27: Peso del bloque de carga (kg) | L27: =+M27/1000 -> 0.0000
E28: Carga (Kg) | F28: Lectura del deformímetro horizontal (mm) | G28: Lectura del deformímetro vertical(mm) | H28: Deformación horizontal (%) | I28: Deformación vertical (%) | J28: Area corregida (cm2) | K28: Esfuerzo normal (Kg/cm2) | L28: Esfuerzo cortante (Kg/cm2) | M28: Relación t/s | Q28: Angulo E para area corregida
P30: DFINAL
E31: 0.009 | F31: 0.00 | G31: 0.0000 | H31: =+((F31/10)/$G$13) -> 0.00% | I31: =((+G31/10)/$G$14) -> 0.00% | J31: =+($G$13^2/2)*(Q31*PI()/180-((F31/10)/$G$13)*SIN(Q31*PI()/180)) -> 15.90 | K31: =+$H$26/J31 -> 0.503 | L31: =+E31/J31 -> 0.0006 | M31: =+L31/K31 -> 0.0011 | P31: =+$G$13-(F31/10) -> 4.5 | Q31: =+DEGREES(ACOS((F31/10)/$G$13)) -> 90.00 | R31: 3132470941.000 | S31: =+K31 -> 0.503
E32: 0.688 | F32: 0.07 | G32: 0.0132 | H32: 0.16% | I32: =((+G32/10)/$G$14) -> 0.05% | J32: 15.87 | K32: 0.504 | L32: =+E32/J32 -> 0.0434 | M32: =+L32/K32 -> 0.0860 | P32: 4.493 | Q32: 89.91 | S32: 0.504
E33: 0.661 | F33: 0.18 | G33: 0.0136 | H33: 0.40% | I33: 0.05% | J33: 15.82 | K33: 0.506 | L33: =+E33/J33 -> 0.0418 | M33: 0.0826 | P33: 4.482 | Q33: 89.77 | S33: 0.506
E34: 0.679 | F34: 0.29 | G34: 0.0136 | H34: 0.64% | I34: 0.05% | J34: 15.77 | K34: 0.507 | L34: 0.0431 | M34: 0.0849 | P34: 4.471 | Q34: 89.63 | R34: 3108712702.000 | S34: 0.507
E35: 2.331 | F35: 0.39 | G35: 0.0155 | H35: 0.87% | I35: 0.06% | J35: 15.73 | K35: 0.509 | L35: 0.1482 | M35: 0.2914 | P35: 4.461 | Q35: 89.50 | S35: 0.509
E36: 3.194 | F36: 0.49 | G36: 0.0186 | H36: 1.09% | I36: 0.07% | J36: 15.68 | K36: 0.510 | L36: 0.2036 | M36: 0.3992 | P36: 4.451 | Q36: 89.38 | S36: 0.510
E37: 3.699 | F37: 0.58 | G37: 0.0223 | H37: 1.29% | I37: 0.08% | J37: 15.64 | K37: 0.511 | L37: 0.2364 | M37: 0.4623 | P37: 4.442 | Q37: 89.26 | S37: 0.511
E38: 4.029 | F38: 0.69 | G38: 0.0259 | H38: 1.53% | I38: 0.09% | J38: 15.59 | K38: 0.513 | L38: 0.2584 | M38: 0.5036 | P38: 4.431 | Q38: 89.12 | S38: 0.513
E39: 4.240 | F39: 0.79 | G39: 0.0294 | H39: 1.76% | I39: 0.11% | J39: 15.55 | K39: 0.515 | L39: 0.2727 | M39: 0.5300 | P39: 4.421 | Q39: 88.99 | S39: 0.515
E40: 4.359 | F40: 0.89 | G40: 0.0326 | H40: 1.98% | I40: 0.12% | J40: 15.50 | K40: 0.516 | L40: 0.2812 | M40: 0.5449 | P40: 4.411 | Q40: 88.87 | S40: 0.516
E41: 4.534 | F41: 0.98 | G41: 0.0358 | H41: 2.18% | I41: 0.13% | J41: 15.46 | K41: 0.517 | L41: 0.2932 | M41: 0.5667 | P41: 4.402 | Q41: 88.75 | S41: 0.517
E42: 4.708 | F42: 1.08 | G42: 0.0387 | H42: 2.40% | I42: 0.14% | J42: 15.42 | K42: 0.519 | L42: 0.3054 | M42: 0.5885 | P42: 4.392 | Q42: 88.62 | S42: 0.519
E43: 4.873 | F43: 1.18 | G43: 0.0412 | H43: 2.62% | I43: 0.15% | J43: 15.37 | K43: 0.520 | L43: 0.3170 | M43: 0.6092 | P43: 4.382 | Q43: 88.50 | S43: 0.520
E44: 5.038 | F44: 1.28 | G44: 0.0437 | H44: 2.84% | I44: 0.16% | J44: 15.33 | K44: 0.522 | L44: 0.3287 | M44: 0.6298 | P44: 4.372 | Q44: 88.37 | S44: 0.522
E45: 5.139 | F45: 1.38 | G45: 0.0457 | H45: 3.07% | I45: 0.16% | J45: 15.28 | K45: 0.523 | L45: 0.3363 | M45: 0.6424 | P45: 4.362 | Q45: 88.24 | S45: 0.523
E46: 5.158 | F46: 1.47 | G46: 0.0487 | H46: 3.27% | I46: 0.17% | J46: 15.24 | K46: 0.525 | L46: 0.3384 | M46: 0.6447 | P46: 4.353 | Q46: 88.13 | S46: 0.525
E47: 5.323 | F47: 1.57 | G47: 0.0511 | H47: 3.49% | I47: 0.18% | J47: 15.20 | K47: 0.526 | L47: 0.3502 | M47: 0.6654 | P47: 4.343 | Q47: 88.00 | S47: 0.526
E48: 5.112 | F48: 1.67 | G48: 0.0520 | H48: 3.71% | I48: 0.19% | J48: 15.15 | K48: 0.528 | L48: 0.3373 | M48: 0.6390 | P48: 4.333 | Q48: 87.87 | S48: 0.528
E49: 5.516 | F49: 1.77 | G49: 0.0540 | H49: 3.93% | I49: 0.19% | J49: 15.11 | K49: 0.530 | L49: =+E49/J49 -> 0.3651 | M49: =+L49/K49 -> 0.6895 | P49: 4.323 | Q49: 87.75 | S49: 0.530
E50: 5.378 | F50: 1.87 | G50: 0.0554 | H50: 4.16% | I50: 0.20% | J50: 15.06 | K50: 0.531 | L50: 0.3570 | M50: 0.6722 | P50: 4.313 | Q50: 87.62 | S50: 0.531
E51: 5.626 | F51: 1.97 | G51: 0.0571 | H51: 4.38% | I51: 0.20% | J51: 15.02 | K51: 0.533 | L51: 0.3746 | M51: 0.7032 | P51: 4.303 | Q51: 87.49 | S51: 0.533
E52: 5.736 | F52: 2.08 | G52: 0.0590 | H52: 4.62% | I52: 0.21% | J52: 14.97 | K52: 0.534 | L52: 0.3832 | M52: 0.7170 | P52: 4.292 | Q52: 87.35 | S52: 0.534
E53: 5.874 | F53: 2.18 | G53: 0.0607 | H53: 4.84% | I53: 0.22% | J53: 14.92 | K53: 0.536 | L53: 0.3936 | M53: 0.7342 | P53: 4.282 | Q53: 87.22 | S53: 0.536
E54: 6.085 | F54: 2.28 | G54: 0.0618 | H54: 5.07% | I54: 0.22% | J54: 14.88 | K54: 0.538 | L54: 0.4089 | M54: 0.7606 | P54: 4.272 | Q54: 87.10 | S54: 0.538
E55: 6.186 | F55: 2.38 | G55: 0.0631 | H55: 5.29% | I55: 0.23% | J55: 14.83 | K55: 0.539 | L55: 0.4170 | M55: 0.7732 | P55: 4.262 | Q55: 86.97 | S55: 0.539
E56: 6.222 | F56: 2.48 | G56: 0.0651 | H56: 5.51% | I56: 0.23% | J56: 14.79 | K56: 0.541 | L56: 0.4207 | M56: 0.7778 | P56: 4.252 | Q56: 86.84 | S56: 0.541
E57: 6.259 | F57: 2.58 | G57: 0.0663 | H57: 5.73% | I57: 0.24% | J57: 14.74 | K57: 0.543 | L57: 0.4245 | M57: 0.7824 | P57: 4.242 | Q57: 86.71 | S57: 0.543
E58: 6.406 | F58: 2.69 | G58: 0.0670 | H58: 5.98% | I58: 0.24% | J58: 14.69 | K58: 0.544 | L58: 0.4359 | M58: 0.8007 | P58: 4.231 | Q58: 86.57 | S58: =+K58 -> 0.544
E59: 6.544 | F59: 2.79 | G59: 0.0683 | H59: 6.20% | I59: 0.24% | J59: 14.65 | K59: 0.546 | L59: 0.4467 | M59: 0.8179 | P59: 4.221 | Q59: 86.45 | S59: 0.546
E60: 6.525 | F60: 2.89 | G60: 0.0698 | H60: 6.42% | I60: 0.25% | J60: 14.60 | K60: 0.548 | L60: 0.4468 | M60: 0.8156 | P60: 4.211 | Q60: 86.32 | S60: 0.548
E61: 6.562 | F61: 2.98 | G61: 0.0706 | H61: 6.62% | I61: 0.25% | J61: 14.56 | K61: 0.549 | L61: 0.4505 | M61: 0.8202 | P61: 4.202 | Q61: 86.20 | S61: 0.549
E62: 6.644 | F62: 3.07 | G62: 0.0713 | H62: 6.82% | I62: 0.25% | J62: 14.52 | K62: 0.551 | L62: 0.4575 | M62: 0.8306 | P62: 4.193 | Q62: 86.09 | S62: 0.551
E63: 6.580 | F63: 3.17 | G63: 0.0720 | H63: 7.04% | I63: 0.26% | J63: 14.48 | K63: 0.553 | L63: =+E63/J63 -> 0.4545 | M63: =+L63/K63 -> 0.8225 | P63: 4.183 | Q63: 85.96 | S63: 0.553
E64: 6.773 | F64: 3.27 | G64: 0.0731 | H64: 7.27% | I64: 0.26% | J64: 14.43 | K64: 0.554 | L64: 0.4692 | M64: 0.8466 | P64: 4.173 | Q64: 85.83 | S64: =+K64 -> 0.554
E65: 6.837 | F65: 3.37 | G65: 0.0731 | H65: 7.49% | I65: 0.26% | J65: 14.39 | K65: 0.556 | L65: 0.4752 | M65: 0.8546 | P65: 4.163 | Q65: 85.71 | S65: 0.556
E66: 6.874 | F66: 3.47 | G66: 0.0740 | H66: =+((F66/10)/$G$13) -> 7.71% | I66: =((+G66/10)/$G$14) -> 0.26% | J66: =+($G$13^2/2)*(Q66*PI()/180-((F66/10)/$G$13)*SIN(Q66*PI()/180)) -> 14.34 | K66: =+$H$26/J66 -> 0.558 | L66: =+E66/J66 -> 0.4792 | M66: =+L66/K66 -> 0.8592 | P66: =+$G$13-(F66/10) -> 4.153 | Q66: =+DEGREES(ACOS((F66/10)/$G$13)) -> 85.58 | S66: =+K66 -> 0.558
E67: 6.929 | F67: 3.56 | G67: 0.0740 | H67: 7.91% | I67: 0.26% | J67: 14.30 | K67: 0.559 | L67: 0.4844 | M67: 0.8661 | P67: 4.144 | Q67: 85.46 | S67: 0.559
E68: 6.975 | F68: 3.66 | G68: 0.0746 | H68: 8.13% | I68: 0.27% | J68: 14.26 | K68: 0.561 | L68: 0.4892 | M68: 0.8719 | P68: 4.134 | Q68: 85.33 | S68: 0.561
E69: 6.966 | F69: 3.76 | G69: 0.0746 | H69: 8.36% | I69: 0.27% | J69: 14.21 | K69: 0.563 | L69: 0.4900 | M69: 0.8707 | P69: 4.124 | Q69: 85.21 | S69: 0.563
E70: 7.067 | F70: 3.85 | G70: 0.0746 | H70: 8.56% | I70: 0.27% | J70: 14.17 | K70: 0.564 | L70: 0.4986 | M70: 0.8833 | P70: 4.115 | Q70: 85.09 | S70: 0.564
E71: 7.094 | F71: 3.96 | G71: 0.0755 | H71: 8.80% | I71: 0.27% | J71: 14.12 | K71: 0.566 | L71: 0.5023 | M71: 0.8868 | P71: 4.104 | Q71: 84.95 | S71: 0.566
E72: 7.021 | F72: 4.06 | G72: 0.0769 | H72: 9.02% | I72: 0.27% | J72: 14.08 | K72: 0.568 | L72: 0.4986 | M72: 0.8776 | P72: 4.094 | Q72: 84.82 | S72: 0.568
E73: 7.094 | F73: 4.16 | G73: 0.0769 | H73: 9.24% | I73: 0.27% | J73: 14.03 | K73: 0.570 | L73: 0.5055 | M73: 0.8868 | P73: 4.084 | Q73: 84.70 | S73: 0.570
E74: 7.076 | F74: 4.26 | G74: 0.0769 | H74: 9.47% | I74: 0.27% | J74: 13.99 | K74: 0.572 | L74: 0.5058 | M74: 0.8845 | P74: 4.074 | Q74: 84.57 | S74: 0.572
E75: 7.131 | F75: 4.36 | G75: 0.0769 | H75: 9.69% | I75: 0.27% | J75: 13.95 | K75: 0.574 | L75: 0.5113 | M75: 0.8914 | P75: 4.064 | Q75: 84.44 | S75: 0.574
E76: 7.213 | F76: 4.46 | G76: 0.0769 | H76: 9.91% | I76: 0.27% | J76: 13.90 | K76: 0.576 | L76: 0.5189 | M76: 0.9017 | P76: 4.054 | Q76: 84.31 | S76: 0.576
E77: 7.232 | F77: 4.56 | G77: 0.0769 | H77: 10.13% | I77: 0.27% | J77: 13.86 | K77: 0.577 | L77: 0.5219 | M77: 0.9040 | P77: 4.044 | Q77: 84.18 | S77: 0.577
E78: 7.241 | F78: 4.67 | G78: 0.0770 | H78: 10.38% | I78: 0.28% | J78: 13.81 | K78: 0.579 | L78: 0.5245 | M78: 0.9051 | P78: 4.033 | Q78: 84.04 | S78: 0.579
E79: 7.168 | F79: 4.77 | G79: 0.0775 | H79: 10.60% | I79: 0.28% | J79: 13.76 | K79: 0.581 | L79: 0.5208 | M79: 0.8959 | P79: 4.023 | Q79: 83.92 | S79: 0.581
E80: 7.241 | F80: 4.87 | G80: 0.0775 | H80: 10.82% | I80: 0.28% | J80: 13.72 | K80: 0.583 | L80: 0.5279 | M80: 0.9051 | P80: 4.013 | Q80: 83.79 | S80: 0.583
E81: 7.278 | F81: 4.96 | G81: 0.0775 | H81: 11.02% | I81: 0.28% | J81: 13.68 | K81: 0.585 | L81: 0.5321 | M81: 0.9097 | P81: 4.004 | Q81: 83.67 | S81: 0.585
E82: 7.168 | F82: 5.05 | G82: 0.0775 | H82: 11.22% | I82: 0.28% | J82: 13.64 | K82: 0.587 | L82: 0.5256 | M82: 0.8959 | P82: 3.995 | Q82: 83.56 | S82: 0.587
E83: 7.186 | F83: 5.15 | G83: 0.0775 | H83: 11.44% | I83: 0.28% | J83: 13.59 | K83: 0.589 | L83: 0.5287 | M83: 0.8982 | P83: 3.985 | Q83: 83.43 | S83: 0.589
E84: 7.269 | F84: 5.25 | G84: 0.0782 | H84: 11.67% | I84: 0.28% | J84: 13.55 | K84: 0.591 | L84: 0.5365 | M84: 0.9086 | P84: 3.975 | Q84: 83.30 | S84: 0.591
E85: 7.213 | F85: 5.35 | G85: 0.0786 | H85: 11.89% | I85: 0.28% | J85: 13.50 | K85: 0.592 | L85: 0.5342 | M85: 0.9017 | P85: 3.965 | Q85: 83.17 | S85: 0.592
E86: 7.259 | F86: 5.45 | G86: 0.0786 | H86: 12.11% | I86: 0.28% | J86: 13.46 | K86: 0.594 | L86: 0.5394 | M86: 0.9074 | P86: 3.955 | Q86: 83.04 | S86: 0.594
E87: 7.232 | F87: 5.55 | G87: 0.0786 | H87: 12.33% | I87: 0.28% | J87: 13.41 | K87: 0.596 | L87: 0.5392 | M87: 0.9040 | P87: 3.945 | Q87: 82.92 | S87: 0.596
E88: 7.241 | F88: 5.64 | G88: 0.0786 | H88: 12.53% | I88: 0.28% | J88: 13.37 | K88: 0.598 | L88: 0.5415 | M88: 0.9051 | P88: 3.936 | Q88: 82.80 | S88: 0.598
E89: 7.278 | F89: 5.75 | G89: 0.0786 | H89: 12.78% | I89: 0.28% | J89: 13.32 | K89: 0.600 | L89: 0.5462 | M89: 0.9097 | P89: 3.925 | Q89: 82.66 | S89: 0.600
E90: 7.296 | F90: 5.85 | G90: 0.0786 | H90: 13.00% | I90: 0.28% | J90: 13.28 | K90: 0.602 | L90: 0.5494 | M90: 0.9120 | P90: 3.915 | Q90: 82.53 | S90: 0.602
E91: 7.434 | F91: 5.95 | G91: 0.0786 | H91: 13.22% | I91: 0.28% | J91: 13.23 | K91: 0.604 | L91: 0.5617 | M91: 0.9292 | P91: 3.905 | Q91: 82.40 | S91: 0.604
E92: 7.259 | F92: 6.05 | G92: 0.0793 | H92: 13.44% | I92: 0.28% | J92: 13.19 | K92: 0.607 | L92: 0.5504 | M92: 0.9074 | P92: 3.895 | Q92: 82.27 | S92: 0.607
E93: 7.305 | F93: 6.15 | G93: 0.0793 | H93: 13.67% | I93: 0.28% | J93: 13.15 | K93: 0.609 | L93: 0.5557 | M93: 0.9132 | P93: 3.885 | Q93: 82.14 | S93: 0.609
E94: 7.287 | F94: 6.24 | G94: 0.0793 | H94: 13.87% | I94: 0.28% | J94: 13.11 | K94: 0.610 | L94: 0.5560 | M94: 0.9109 | P94: 3.876 | Q94: 82.03 | S94: 0.610
E95: 7.369 | F95: 6.35 | G95: 0.0793 | H95: 14.11% | I95: 0.28% | J95: 13.06 | K95: 0.613 | L95: 0.5644 | M95: 0.9212 | P95: 3.865 | Q95: 81.89 | S95: 0.613
E96: 7.415 | F96: 6.45 | G96: 0.0804 | H96: 14.33% | I96: 0.29% | J96: 13.01 | K96: 0.615 | L96: 0.5699 | M96: 0.9269 | P96: 3.855 | Q96: 81.76 | S96: 0.615
E97: 7.397 | F97: 6.55 | G97: 0.0804 | H97: 14.56% | I97: 0.29% | J97: 12.97 | K97: 0.617 | L97: 0.5704 | M97: 0.9246 | P97: 3.845 | Q97: 81.63 | S97: 0.617
E98: 7.314 | F98: 6.66 | G98: 0.0804 | H98: 14.80% | I98: 0.29% | J98: 12.92 | K98: 0.619 | L98: 0.5662 | M98: 0.9143 | P98: 3.834 | Q98: 81.49 | S98: 0.619
E99: 7.314 | F99: 6.76 | G99: 0.0804 | H99: 15.02% | I99: 0.29% | J99: 12.87 | K99: 0.621 | L99: 0.5682 | M99: 0.9143 | P99: 3.824 | Q99: 81.36 | S99: 0.621
E100: 7.324 | F100: 6.86 | G100: 0.0804 | H100: 15.24% | I100: 0.29% | J100: 12.83 | K100: 0.624 | L100: 0.5708 | M100: 0.9155 | P100: 3.814 | Q100: 81.23 | S100: 0.624
E101: 7.415 | F101: 6.95 | G101: 0.0804 | H101: 15.44% | I101: 0.29% | J101: 12.79 | K101: 0.626 | L101: 0.5798 | M101: 0.9269 | P101: 3.805 | Q101: 81.12 | S101: 0.626
E102: 7.535 | F102: 7.04 | G102: 0.0804 | H102: 15.64% | I102: 0.29% | J102: 12.75 | K102: 0.627 | L102: 0.5910 | M102: 0.9418 | P102: 3.796 | Q102: 81.00 | S102: 0.627
E103: 7.461 | F103: 7.14 | G103: 0.0804 | H103: 15.87% | I103: 0.29% | J103: 12.70 | K103: 0.630 | L103: 0.5873 | M103: 0.9327 | P103: 3.786 | Q103: 80.87 | S103: 0.630
E104: 7.489 | F104: 7.24 | G104: 0.0804 | H104: 16.09% | I104: 0.29% | J104: 12.66 | K104: 0.632 | L104: 0.5915 | M104: 0.9361 | P104: 3.776 | Q104: 80.74 | S104: 0.632
E105: 7.443 | F105: 7.34 | G105: 0.0804 | H105: 16.31% | I105: 0.29% | J105: 12.62 | K105: 0.634 | L105: 0.5900 | M105: 0.9304 | P105: 3.766 | Q105: 80.61 | S105: 0.634
E106: 7.443 | F106: 7.44 | G106: 0.0804 | H106: 16.53% | I106: 0.29% | J106: 12.57 | K106: 0.636 | L106: 0.5920 | M106: 0.9304 | P106: 3.756 | Q106: 80.48 | S106: 0.636
E107: 7.415 | F107: 7.53 | G107: 0.0804 | H107: 16.73% | I107: 0.29% | J107: 12.53 | K107: 0.638 | L107: 0.5917 | M107: 0.9269 | P107: 3.747 | Q107: 80.37 | S107: 0.638
E108: 7.461 | F108: 7.63 | G108: 0.0804 | H108: 16.96% | I108: 0.29% | J108: 12.49 | K108: 0.641 | L108: 0.5975 | M108: 0.9327 | P108: 3.737 | Q108: 80.24 | S108: 0.641
E109: 7.443 | F109: 7.75 | G109: 0.0804 | H109: 17.22% | I109: 0.29% | J109: 12.43 | K109: 0.643 | L109: 0.5986 | M109: 0.9304 | P109: 3.725 | Q109: 80.08 | S109: 0.643
E110: 7.406 | F110: 7.86 | G110: 0.0804 | H110: 17.47% | I110: 0.29% | J110: 12.39 | K110: 0.646 | L110: 0.5980 | M110: 0.9258 | P110: 3.714 | Q110: 79.94 | S110: 0.646
E111: 7.369 | F111: 7.95 | G111: 0.0804 | H111: 17.67% | I111: 0.29% | J111: 12.35 | K111: 0.648 | L111: 0.5969 | M111: 0.9212 | P111: 3.705 | Q111: 79.82 | S111: 0.648
E112: 7.360 | F112: 8.05 | G112: 0.0804 | H112: 17.89% | I112: 0.29% | J112: 12.30 | K112: 0.650 | L112: 0.5983 | M112: 0.9200 | P112: 3.695 | Q112: 79.69 | S112: 0.650
E113: 7.397 | F113: 8.15 | G113: 0.0804 | H113: 18.11% | I113: 0.29% | J113: 12.26 | K113: 0.653 | L113: 0.6035 | M113: 0.9246 | P113: 3.685 | Q113: 79.57 | S113: 0.653
E114: 7.369 | F114: 8.25 | G114: 0.0804 | H114: 18.33% | I114: 0.29% | J114: 12.21 | K114: 0.655 | L114: 0.6034 | M114: 0.9212 | P114: 3.675 | Q114: 79.44 | S114: 0.655
E115: 7.415 | F115: 8.35 | G115: 0.0804 | H115: 18.56% | I115: 0.29% | J115: 12.17 | K115: 0.657 | L115: 0.6094 | M115: 0.9269 | P115: 3.665 | Q115: 79.31 | S115: 0.657
E116: 7.434 | F116: 8.45 | G116: 0.0804 | H116: 18.78% | I116: 0.29% | J116: 12.12 | K116: 0.660 | L116: 0.6131 | M116: 0.9292 | P116: 3.655 | Q116: 79.18 | S116: 0.660
E117: 7.452 | F117: 8.55 | G117: 0.0804 | H117: 19.00% | I117: 0.29% | J117: 12.08 | K117: 0.662 | L117: 0.6169 | M117: 0.9315 | P117: 3.645 | Q117: 79.05 | S117: 0.662
E118: 7.461 | F118: 8.66 | G118: 0.0804 | H118: 19.24% | I118: 0.29% | J118: 12.03 | K118: 0.665 | L118: 0.6201 | M118: 0.9327 | P118: 3.634 | Q118: 78.90 | S118: 0.665
E119: 7.397 | F119: 8.76 | G119: 0.0804 | H119: 19.47% | I119: 0.29% | J119: 11.99 | K119: 0.667 | L119: 0.6171 | M119: 0.9246 | P119: 3.624 | Q119: 78.77 | S119: 0.667
E120: 7.470 | F120: 8.85 | G120: 0.0804 | H120: 19.67% | I120: 0.29% | J120: 11.95 | K120: 0.670 | L120: 0.6253 | M120: 0.9338 | P120: 3.615 | Q120: 78.66 | S120: 0.670
E121: 7.507 | F121: 8.94 | G121: 0.0804 | H121: 19.87% | I121: 0.29% | J121: 11.91 | K121: 0.672 | L121: 0.6304 | M121: 0.9384 | P121: 3.606 | Q121: 78.54 | S121: 0.672
E122: 7.480 | F122: 9.04 | G122: 0.0804 | H122: 20.09% | I122: 0.29% | J122: 11.86 | K122: 0.674 | L122: 0.6305 | M122: 0.9350 | P122: 3.596 | Q122: 78.41 | S122: 0.674
E123: 7.562 | F123: 9.14 | G123: 0.0804 | H123: 20.31% | I123: 0.29% | J123: 11.82 | K123: 0.677 | L123: 0.6398 | M123: 0.9453 | P123: 3.586 | Q123: 78.28 | S123: 0.677
E124: 7.746 | F124: 9.25 | G124: 0.0804 | H124: 20.56% | I124: 0.29% | J124: 11.77 | K124: 0.680 | L124: 0.6580 | M124: 0.9682 | P124: 3.575 | Q124: 78.14 | S124: 0.680
E125: 7.764 | F125: 9.34 | G125: 0.0804 | H125: 20.76% | I125: 0.29% | J125: 11.73 | K125: 0.682 | L125: 0.6618 | M125: 0.9705 | P125: 3.566 | Q125: 78.02 | S125: 0.682
E126: 7.764 | F126: 9.43 | G126: 0.0804 | H126: 20.96% | I126: 0.29% | J126: 11.69 | K126: 0.684 | L126: 0.6640 | M126: 0.9705 | P126: 3.557 | Q126: 77.90 | S126: 0.684
E127: 7.819 | F127: 9.53 | G127: 0.0804 | H127: 21.18% | I127: 0.29% | J127: 11.65 | K127: 0.687 | L127: 0.6713 | M127: 0.9774 | P127: 3.547 | Q127: 77.77 | S127: 0.687
E128: 7.773 | F128: 9.63 | G128: 0.0804 | H128: 21.40% | I128: 0.29% | J128: 11.60 | K128: 0.689 | L128: 0.6699 | M128: 0.9717 | P128: 3.537 | Q128: 77.64 | S128: 0.689
E129: 7.847 | F129: 9.74 | G129: 0.0804 | H129: 21.64% | I129: 0.29% | J129: 11.56 | K129: 0.692 | L129: 0.6790 | M129: 0.9808 | P129: 3.526 | Q129: 77.50 | S129: 0.692
E130: 7.874 | F130: 9.84 | G130: 0.0804 | H130: =+((F130/10)/$G$13) -> 21.87% | I130: =((+G130/10)/$G$14) -> 0.29% | J130: =+($G$13^2/2)*(Q130*PI()/180-((F130/10)/$G$13)*SIN(Q130*PI()/180)) -> 11.51 | K130: =+$H$26/J130 -> 0.695 | L130: =+E130/J130 -> 0.6840 | M130: =+L130/K130 -> 0.9843 | P130: =+$G$13-(F130/10) -> 3.516 | Q130: =+DEGREES(ACOS((F130/10)/$G$13)) -> 77.37 | S130: =+K130 -> 0.695
E131: 7.801 | F131: 9.93 | G131: 0.0804 | H131: 22.07% | I131: 0.29% | J131: 11.47 | K131: 0.697 | L131: 0.6800 | M131: 0.9751 | P131: 3.507 | Q131: 77.25 | S131: 0.697
E132: 7.874 | F132: 10.03 | G132: 0.0804 | H132: 22.29% | I132: 0.29% | J132: 11.43 | K132: 0.700 | L132: 0.6890 | M132: 0.9843 | P132: 3.497 | Q132: 77.12 | S132: 0.700
E133: 7.994 | F133: 10.13 | G133: 0.0804 | H133: 22.51% | I133: 0.29% | J133: 11.38 | K133: 0.703 | L133: 0.7021 | M133: 0.9992 | P133: 3.487 | Q133: 76.99 | S133: 0.703
E134: 7.828 | F134: 10.23 | G134: 0.0804 | H134: 22.73% | I134: 0.29% | J134: 11.34 | K134: 0.705 | L134: 0.6903 | M134: 0.9785 | P134: 3.477 | Q134: 76.86 | S134: 0.705
E135: 8.085 | F135: 10.33 | G135: 0.0804 | H135: 22.96% | I135: 0.29% | J135: 11.30 | K135: 0.708 | L135: 0.7157 | M135: 1.0107 | P135: 3.467 | Q135: 76.73 | S135: 0.708
E136: 8.186 | F136: 10.43 | G136: 0.0804 | H136: 23.18% | I136: 0.29% | J136: 11.25 | K136: 0.711 | L136: 0.7275 | M136: 1.0233 | P136: 3.457 | Q136: 76.60 | S136: 0.711
E137: 8.214 | F137: 10.53 | G137: 0.0804 | H137: 23.40% | I137: 0.29% | J137: 11.21 | K137: 0.714 | L137: 0.7328 | M137: 1.0267 | P137: 3.447 | Q137: 76.47 | S137: 0.714
E138: 8.251 | F138: 10.63 | G138: 0.0804 | H138: 23.62% | I138: 0.29% | J138: 11.17 | K138: 0.716 | L138: 0.7389 | M138: 1.0313 | P138: 3.437 | Q138: 76.34 | S138: 0.716
E139: 8.407 | F139: 10.73 | G139: 0.0804 | H139: 23.84% | I139: 0.29% | J139: 11.12 | K139: 0.719 | L139: 0.7559 | M139: 1.0508 | P139: 3.427 | Q139: 76.21 | S139: 0.719
E140: 8.480 | F140: 10.82 | G140: 0.0804 | H140: 24.04% | I140: 0.29% | J140: 11.08 | K140: 0.722 | L140: 0.7652 | M140: 1.0600 | P140: 3.418 | Q140: 76.09 | S140: 0.722
E141: 8.489 | F141: 10.92 | G141: 0.0804 | H141: 24.27% | I141: 0.29% | J141: 11.04 | K141: 0.725 | L141: 0.7690 | M141: 1.0611 | P141: 3.408 | Q141: 75.96 | S141: 0.725
E142: 8.581 | F142: 11.02 | G142: 0.0804 | H142: 24.49% | I142: 0.29% | J142: 11.00 | K142: 0.728 | L142: 0.7804 | M142: 1.0726 | P142: 3.398 | Q142: 75.82 | S142: 0.728
E143: 8.664 | F143: 11.12 | G143: 0.0804 | H143: 24.71% | I143: 0.29% | J143: 10.95 | K143: 0.730 | L143: 0.7911 | M143: 1.0829 | P143: 3.388 | Q143: 75.69 | S143: 0.730
E144: 8.755 | F144: 11.22 | G144: 0.0804 | H144: 24.93% | I144: 0.29% | J144: 10.91 | K144: 0.733 | L144: 0.8026 | M144: 1.0944 | P144: 3.378 | Q144: 75.56 | S144: 0.733
E145: 8.673 | F145: 11.31 | G145: 0.0804 | H145: 25.13% | I145: 0.29% | J145: 10.87 | K145: 0.736 | L145: 0.7979 | M145: 1.0841 | P145: 3.369 | Q145: 75.44 | S145: 0.736
E146: 8.664 | F146: 11.41 | G146: 0.0804 | H146: 25.36% | I146: 0.29% | J146: 10.83 | K146: 0.739 | L146: 0.8003 | M146: 1.0829 | P146: 3.359 | Q146: 75.31 | S146: 0.739
E147: 8.709 | F147: 11.50 | G147: 0.0804 | H147: 25.56% | I147: 0.29% | J147: 10.79 | K147: 0.742 | L147: 0.8075 | M147: 1.0887 | P147: 3.35 | Q147: 75.19 | S147: 0.742
E148: 8.774 | F148: 11.61 | G148: 0.0804 | H148: 25.80% | I148: 0.29% | J148: 10.74 | K148: 0.745 | L148: 0.8170 | M148: 1.0967 | P148: 3.339 | Q148: 75.05 | S148: 0.745
E149: 8.939 | F149: 11.71 | G149: 0.0804 | H149: 26.02% | I149: 0.29% | J149: 10.69 | K149: 0.748 | L149: 0.8358 | M149: 1.1174 | P149: 3.329 | Q149: 74.92 | S149: 0.748
E150: 9.040 | F150: 11.81 | G150: 0.0804 | H150: 26.24% | I150: 0.29% | J150: 10.65 | K150: 0.751 | L150: 0.8487 | M150: 1.1300 | P150: 3.319 | Q150: 74.78 | S150: 0.751
E151: 8.884 | F151: 11.91 | G151: 0.0804 | H151: 26.47% | I151: 0.29% | J151: 10.61 | K151: 0.754 | L151: 0.8375 | M151: 1.1105 | P151: 3.309 | Q151: 74.65 | S151: 0.754
E152: 8.856 | F152: 12.01 | G152: 0.0804 | H152: 26.69% | I152: 0.29% | J152: 10.56 | K152: 0.757 | L152: 0.8383 | M152: 1.1070 | P152: 3.299 | Q152: 74.52 | S152: 0.757
E153: 8.507 | F153: 12.11 | G153: 0.0804 | H153: 26.91% | I153: 0.29% | J153: 10.52 | K153: 0.760 | L153: 0.8086 | M153: 1.0634 | P153: 3.289 | Q153: 74.39 | S153: 0.760
E154: 8.361 | F154: 12.22 | G154: 0.0804 | H154: 27.16% | I154: 0.29% | J154: 10.47 | K154: 0.764 | L154: 0.7983 | M154: 1.0451 | P154: 3.278 | Q154: 74.24 | S154: 0.764
E155: 8.544 | F155: 12.32 | G155: 0.0804 | H155: 27.38% | I155: 0.29% | J155: 10.43 | K155: 0.767 | L155: 0.8192 | M155: 1.0680 | P155: 3.268 | Q155: 74.11 | S155: 0.767
E156: 8.544 | F156: 12.42 | G156: 0.0804 | H156: 27.60% | I156: 0.29% | J156: 10.39 | K156: 0.770 | L156: 0.8226 | M156: 1.0680 | P156: 3.258 | Q156: 73.98 | S156: 0.770
E157: 8.425 | F157: 12.53 | G157: 0.0804 | H157: 27.84% | I157: 0.29% | J157: 10.34 | K157: 0.774 | L157: 0.8148 | M157: 1.0531 | P157: 3.247 | Q157: 73.83 | S157: 0.774
E158: 8.342 | F158: 12.63 | G158: 0.0804 | H158: 28.07% | I158: 0.29% | J158: 10.30 | K158: 0.777 | L158: 0.8102 | M158: 1.0428 | P158: 3.237 | Q158: 73.70 | S158: 0.777
E159: 8.315 | F159: 12.73 | G159: 0.0804 | H159: 28.29% | I159: 0.29% | J159: 10.25 | K159: 0.780 | L159: 0.8109 | M159: 1.0393 | P159: 3.227 | Q159: 73.57 | S159: 0.780
E160: 8.388 | F160: 12.83 | G160: 0.0804 | H160: 28.51% | I160: 0.29% | J160: 10.21 | K160: 0.784 | L160: 0.8216 | M160: 1.0485 | P160: 3.217 | Q160: 73.43 | S160: 0.784
E161: 8.342 | F161: 12.92 | G161: 0.0804 | H161: 28.71% | I161: 0.29% | J161: 10.17 | K161: 0.787 | L161: 0.8202 | M161: 1.0428 | P161: 3.208 | Q161: 73.31 | S161: 0.787
E162: 8.397 | F162: 13.03 | G162: 0.0804 | H162: 28.96% | I162: 0.29% | J162: 10.12 | K162: 0.790 | L162: 0.8295 | M162: 1.0497 | P162: 3.197 | Q162: 73.17 | S162: 0.790
E163: 8.306 | F163: 13.12 | G163: 0.0804 | H163: 29.16% | I163: 0.29% | J163: 10.09 | K163: 0.793 | L163: 0.8236 | M163: 1.0382 | P163: 3.188 | Q163: 73.05 | S163: 0.793
E164: 8.379 | F164: 13.22 | G164: 0.0804 | H164: 29.38% | I164: 0.29% | J164: 10.04 | K164: 0.797 | L164: 0.8344 | M164: 1.0474 | P164: 3.178 | Q164: 72.92 | S164: 0.797
E165: 8.379 | F165: 13.31 | G165: 0.0804 | H165: 29.58% | I165: 0.29% | J165: 10.00 | K165: 0.800 | L165: 0.8376 | M165: 1.0474 | P165: 3.169 | Q165: 72.80 | S165: 0.800
E166: 8.425 | F166: 13.41 | G166: 0.0804 | H166: 29.80% | I166: 0.29% | J166: 9.96 | K166: 0.803 | L166: 0.8458 | M166: 1.0531 | P166: 3.159 | Q166: 72.66 | S166: 0.803
E167: 8.416 | F167: 13.51 | G167: 0.0804 | H167: 30.02% | I167: 0.29% | J167: 9.92 | K167: 0.807 | L167: 0.8486 | M167: 1.0520 | P167: 3.149 | Q167: 72.53 | S167: 0.807
E168: 8.416 | F168: 13.61 | G168: 0.0804 | H168: 30.24% | I168: 0.29% | J168: 9.87 | K168: 0.810 | L168: 0.8523 | M168: 1.0520 | P168: 3.139 | Q168: 72.40 | S168: 0.810
E169: 8.260 | F169: 13.72 | G169: 0.0804 | H169: 30.49% | I169: 0.29% | J169: 9.83 | K169: 0.814 | L169: 0.8405 | M169: 1.0325 | P169: 3.128 | Q169: 72.25 | S169: 0.814
E170: 8.342 | F170: 13.81 | G170: 0.0804 | H170: 30.69% | I170: 0.29% | J170: 9.79 | K170: 0.817 | L170: 0.8522 | M170: 1.0428 | P170: 3.119 | Q170: 72.13 | S170: 0.817
E171: 8.140 | F171: 13.92 | G171: 0.0804 | H171: 30.93% | I171: 0.29% | J171: 9.74 | K171: 0.821 | L171: 0.8356 | M171: 1.0175 | P171: 3.108 | Q171: 71.98 | S171: 0.821
E172: 8.150 | F172: 14.02 | G172: 0.0804 | H172: 31.16% | I172: 0.29% | J172: 9.70 | K172: 0.825 | L172: 0.8403 | M172: 1.0187 | P172: 3.098 | Q172: 71.85 | S172: 0.825
E173: 8.214 | F173: 14.12 | G173: 0.0804 | H173: 31.38% | I173: 0.29% | J173: 9.66 | K173: 0.828 | L173: 0.8506 | M173: 1.0267 | P173: 3.088 | Q173: 71.71 | S173: 0.828
E174: 8.195 | F174: 14.22 | G174: 0.0804 | H174: 31.60% | I174: 0.29% | J174: 9.61 | K174: 0.832 | L174: 0.8525 | M174: 1.0244 | P174: 3.078 | Q174: 71.58 | S174: 0.832
S175: 0.000
S176: 0.000
S177: 0.000
S178: 0.000
S179: 0.000
S180: 0.000
S181: 0.000
S182: 0.000
J194: Revisado y Aprobado:
E195: Laboratorista | K195: I.C. GERMAN DARÍO TAPIA MUÑOZ
K196: M.P. 25202-60095 CND (Secc. C/marca)
G206: =MAX(G31:G76) -> 0.077
G207: =MAX(G32:G76) -> 0.077
E208: =MAX(E31:E191) -> 9.0398 | G208: =MAX(G31:G191) -> 0.0804 | J208: =MIN(J31:J193) -> 9.61 | K208: =+S95 -> 0.613 | L208: =VLOOKUP(E208,E31:L174,8,0) -> 0.849
K209: =+S96 -> 0.615 | L209: =MIN(L61:L76) -> 0.451
L210: OJO MODIFICAR CON EL MINIMO DESPUES DEL MAXIMO
E248: Proyecto: | I248: Cliente | M248: Muestra
E249: Sondeo: | I249: Profundidad: | K249: A | M249: Fecha
E250: Galleta : | F250: A
E251: Tipo Muestra:

Sheet CD B wn
G3: ENSAYO DE CORTE DIRECTO
U5: galleta A
D6: Proyecto: | E6: =+'CD A wn'!E6 -> 0.00 | H6: Cliente | I6: =+'CD A wn'!I6 -> 0 | L6: Muestra | M6: =+'CD A wn'!M6 -> Muestra 17
D7: Sondeo: | E7: =+'CD A wn'!E7 -> Sondeo 6 | H7: Profundidad: | I7: =+'CD A wn'!I7 -> 0.00 | J7: A | K7: =+'CD A wn'!K7 -> 0.00 | L7: Fecha | M7: =+'CD A wn'!M7:N7 -> 00:00:00
B8: Galleta 1 | D8: Galleta : | E8: B
D9: Tipo Muestra: | E9: =+'CD A wn'!E9 -> 0.00
E11: Descripcion de la muestra
E13: Diámetro (cm) | G13: 4.50 | K13: Humedad natural | L13: Inicial | M13: Final
B14: DIAMETROS | E14: Altura (cm) | G14: 2.80 | K14: Recipiente
A15: 5 | B15: 5 | C15: =+(A15+B15)/2 -> 5 | E15: Peso del anillo + muestra (g) | K15: Peso recipiente (g)
A16: 5 | B16: 5 | C16: 5 | E16: Peso del anillo (g) | K16: Peso rec + m. humeda (g)
A17: 5 | B17: 5 | C17: 5 | E17: Peso de la muestra (g) | G17: =+G15-G16 -> 0.00 | K17: Peso rec + m. seca (g)
B18: ALTURAS | E18: Peso seco (g) | G18: =+G22*G20 -> 0.00 | K18: Wn (%) | L18: 22.00% | M18: 26.00%
A19: 2.18 | B19: 2.18 | C19: 2.18 | E19: Area (cm2) | G19: =+(PI()*G13^2)/4 -> 15.90
A20: 2.18 | B20: 2.18 | C20: 2.18 | E20: Volumen (cm3) | G20: =+G14*G19 -> 44.53
A21: 2.18 | B21: 2.18 | C21: 2.18 | E21: Peso unitario total (g/cm3) | G21: =+G17/G20 -> 0.00
E22: Peso unitario seco (g/cm3 | G22: =+G21/(1+(L18)) -> 0.00
B23: 52.42 | E23: Altura final (despues del ensayo de corte) | G23: =+G14-(G269/10) -> 2.79
B25: 322.87 | E25: Pesa de carga (kg) | I25: Peso piedra porosa (kg) | L25: =+M25/1000 -> 0.0000
B26: 289.4 | E26: Carga normal (kg) | H26: 15 | I26: Velocidad de corte (mm/min)
E27: Esfuerzo normal inicial (kg/cm2) | H27: =+H26/G19 -> 0.94 | I27: Peso del bloque de carga (kg) | L27: =+M27/1000 -> 0.0000
E28: Carga (Kg) | F28: Lectura del deformímetro horizontal (mm) | G28: Lectura del deformímetro vertical(mm) | H28: Deformación horizontal (%) | I28: Deformación vertical (%) | J28: Area corregida (cm2) | K28: Esfuerzo normal (Kg/cm2) | L28: Esfuerzo cortante (Kg/cm2) | M28: Relación t/s | Q28: Angulo E para area corregida
P30: DFINAL
E31: 0.010 | F31: 0.02 | G31: 0.1183 | H31: =+((F31/10)/$G$13) -> 0.04% | I31: =((+G31/10)/$G$14) -> 0.42% | J31: =+($G$13^2/2)*(Q31*PI()/180-((F31/10)/$G$13)*SIN(Q31*PI()/180)) -> 15.90 | K31: =+$H$26/J31 -> 0.944 | L31: =+E31/J31 -> 0.0006 | M31: =+L31/K31 -> 0.0007 | P31: =+$G$13-(F31/10) -> 4.498 | Q31: =+DEGREES(ACOS((F31/10)/$G$13)) -> 89.97 | R31: 3132470941.000 | S31: =+K31 -> 0.944
E32: 0.510 | F32: 0.09 | G32: 0.1184 | H32: 0.20% | I32: =((+G32/10)/$G$14) -> 0.42% | J32: 15.86 | K32: 0.946 | L32: =+E32/J32 -> 0.0321 | M32: =+L32/K32 -> 0.0340 | P32: 4.491 | Q32: 89.89 | S32: 0.946
E33: 0.525 | F33: 0.19 | G33: 0.1194 | H33: 0.42% | I33: 0.43% | J33: 15.82 | K33: 0.948 | L33: =+E33/J33 -> 0.0332 | M33: 0.0350 | P33: 4.481 | Q33: 89.76 | S33: 0.948
E34: 0.530 | F34: 0.29 | G34: 0.1194 | H34: 0.64% | I34: 0.43% | J34: 15.77 | K34: 0.951 | L34: 0.0336 | M34: 0.0354 | P34: 4.471 | Q34: 89.63 | R34: 3108712702.000 | S34: 0.951
E35: 2.876 | F35: 0.39 | G35: 0.1194 | H35: 0.87% | I35: 0.43% | J35: 15.73 | K35: 0.954 | L35: 0.1828 | M35: 0.1917 | P35: 4.461 | Q35: 89.50 | S35: 0.954
E36: 3.839 | F36: 0.48 | G36: 0.1208 | H36: 1.07% | I36: 0.43% | J36: 15.69 | K36: 0.956 | L36: 0.2447 | M36: 0.2559 | P36: 4.452 | Q36: 89.39 | S36: 0.956
E37: 4.186 | F37: 0.58 | G37: 0.1229 | H37: 1.29% | I37: 0.44% | J37: 15.64 | K37: 0.959 | L37: 0.2676 | M37: 0.2791 | P37: 4.442 | Q37: 89.26 | S37: 0.959
E38: 4.558 | F38: 0.68 | G38: 0.1246 | H38: 1.51% | I38: 0.45% | J38: 15.60 | K38: 0.962 | L38: 0.2922 | M38: 0.3039 | P38: 4.432 | Q38: 89.13 | S38: 0.962
E39: 4.839 | F39: 0.78 | G39: 0.1268 | H39: 1.73% | I39: 0.45% | J39: 15.55 | K39: 0.964 | L39: 0.3111 | M39: 0.3226 | P39: 4.422 | Q39: 89.01 | S39: 0.964
E40: 5.042 | F40: 0.88 | G40: 0.1284 | H40: 1.96% | I40: 0.46% | J40: 15.51 | K40: 0.967 | L40: 0.3251 | M40: 0.3362 | P40: 4.412 | Q40: 88.88 | S40: 0.967
E41: 5.201 | F41: 0.98 | G41: 0.1296 | H41: 2.18% | I41: 0.46% | J41: 15.46 | K41: 0.970 | L41: 0.3363 | M41: 0.3467 | P41: 4.402 | Q41: 88.75 | S41: 0.970
E42: 5.359 | F42: 1.08 | G42: 0.1309 | H42: 2.40% | I42: 0.47% | J42: 15.42 | K42: 0.973 | L42: 0.3475 | M42: 0.3572 | P42: 4.392 | Q42: 88.62 | S42: 0.973
E43: 5.557 | F43: 1.18 | G43: 0.1325 | H43: 2.62% | I43: 0.47% | J43: 15.37 | K43: 0.976 | L43: 0.3615 | M43: 0.3705 | P43: 4.382 | Q43: 88.50 | S43: 0.976
E44: 5.710 | F44: 1.27 | G44: 0.1332 | H44: 2.82% | I44: 0.48% | J44: 15.33 | K44: 0.978 | L44: 0.3724 | M44: 0.3807 | P44: 4.373 | Q44: 88.38 | S44: 0.978
E45: 5.848 | F45: 1.37 | G45: 0.1341 | H45: 3.04% | I45: 0.48% | J45: 15.29 | K45: 0.981 | L45: 0.3825 | M45: 0.3899 | P45: 4.363 | Q45: 88.26 | S45: 0.981
E46: 6.006 | F46: 1.47 | G46: 0.1356 | H46: 3.27% | I46: 0.48% | J46: 15.24 | K46: 0.984 | L46: 0.3940 | M46: 0.4004 | P46: 4.353 | Q46: 88.13 | S46: 0.984
E47: 6.128 | F47: 1.56 | G47: 0.1356 | H47: 3.47% | I47: 0.48% | J47: 15.20 | K47: 0.987 | L47: 0.4031 | M47: 0.4086 | P47: 4.344 | Q47: 88.01 | S47: 0.987
E48: 6.195 | F48: 1.66 | G48: 0.1363 | H48: 3.69% | I48: 0.49% | J48: 15.16 | K48: 0.990 | L48: 0.4087 | M48: 0.4130 | P48: 4.334 | Q48: 87.89 | S48: 0.990
E49: 6.343 | F49: 1.76 | G49: 0.1371 | H49: 3.91% | I49: 0.49% | J49: 15.11 | K49: 0.993 | L49: 0.4197 | M49: 0.4228 | P49: 4.324 | Q49: 87.76 | S49: 0.993
E50: 6.434 | F50: 1.86 | G50: 0.1382 | H50: 4.13% | I50: 0.49% | J50: 15.07 | K50: 0.996 | L50: 0.4270 | M50: 0.4290 | P50: 4.314 | Q50: 87.63 | S50: 0.996
E51: 6.455 | F51: 1.96 | G51: 0.1382 | H51: 4.36% | I51: 0.49% | J51: 15.02 | K51: 0.998 | L51: 0.4297 | M51: 0.4303 | P51: 4.304 | Q51: 87.50 | S51: 0.998
E52: 6.445 | F52: 2.06 | G52: 0.1382 | H52: 4.58% | I52: 0.49% | J52: 14.98 | K52: 1.001 | L52: 0.4303 | M52: 0.4296 | P52: 4.294 | Q52: 87.38 | S52: 1.001
E53: 6.796 | F53: 2.17 | G53: 0.1395 | H53: 4.82% | I53: 0.50% | J53: 14.93 | K53: 1.005 | L53: 0.4553 | M53: 0.4531 | P53: 4.283 | Q53: 87.24 | S53: 1.005
E54: 6.847 | F54: 2.27 | G54: 0.1403 | H54: 5.04% | I54: 0.50% | J54: 14.88 | K54: 1.008 | L54: 0.4601 | M54: 0.4565 | P54: 4.273 | Q54: 87.11 | S54: 1.008
E55: 6.863 | F55: 2.37 | G55: 0.1403 | H55: 5.27% | I55: 0.50% | J55: 14.84 | K55: 1.011 | L55: 0.4625 | M55: 0.4575 | P55: 4.263 | Q55: 86.98 | S55: 1.011
E56: 6.888 | F56: 2.47 | G56: 0.1414 | H56: 5.49% | I56: 0.51% | J56: 14.79 | K56: 1.014 | L56: 0.4656 | M56: 0.4592 | P56: 4.253 | Q56: 86.85 | S56: 1.014
E57: 7.011 | F57: 2.57 | G57: 0.1414 | H57: =+((F57/10)/$G$13) -> 5.71% | I57: =((+G57/10)/$G$14) -> 0.51% | J57: =+($G$13^2/2)*(Q57*PI()/180-((F57/10)/$G$13)*SIN(Q57*PI()/180)) -> 14.75 | K57: =+$H$26/J57 -> 1.017 | L57: =+E57/J57 -> 0.4753 | M57: =+L57/K57 -> 0.4674 | P57: =+$G$13-(F57/10) -> 4.243 | Q57: =+DEGREES(ACOS((F57/10)/$G$13)) -> 86.73 | S57: =+K57 -> 1.017
E58: 7.220 | F58: 2.68 | G58: 0.1432 | H58: 5.96% | I58: 0.51% | J58: 14.70 | K58: 1.020 | L58: 0.4912 | M58: 0.4813 | P58: 4.232 | Q58: 86.59 | S58: 1.020
E59: 7.316 | F59: 2.78 | G59: 0.1432 | H59: 6.18% | I59: 0.51% | J59: 14.65 | K59: 1.024 | L59: 0.4993 | M59: 0.4878 | P59: 4.222 | Q59: 86.46 | S59: 1.024
E60: 7.398 | F60: 2.88 | G60: 0.1432 | H60: 6.40% | I60: 0.51% | J60: 14.61 | K60: 1.027 | L60: 0.5064 | M60: 0.4932 | P60: 4.212 | Q60: 86.33 | S60: 1.027
E61: 7.546 | F61: 2.97 | G61: 0.1433 | H61: 6.60% | I61: 0.51% | J61: 14.57 | K61: 1.030 | L61: 0.5179 | M61: 0.5031 | P61: 4.203 | Q61: 86.22 | S61: 1.030
E62: 7.678 | F62: 3.06 | G62: 0.1432 | H62: 6.80% | I62: 0.51% | J62: 14.53 | K62: 1.032 | L62: 0.5285 | M62: 0.5119 | P62: 4.194 | Q62: 86.10 | S62: 1.032
E63: 7.780 | F63: 3.17 | G63: 0.1433 | H63: 7.04% | I63: 0.51% | J63: 14.48 | K63: 1.036 | L63: 0.5374 | M63: 0.5187 | P63: 4.183 | Q63: 85.96 | S63: 1.036
E64: 7.908 | F64: 3.26 | G64: 0.1432 | H64: 7.24% | I64: 0.51% | J64: 14.44 | K64: 1.039 | L64: 0.5477 | M64: 0.5272 | P64: 4.174 | Q64: 85.85 | S64: 1.039
E65: 7.913 | F65: 3.36 | G65: 0.1433 | H65: 7.47% | I65: 0.51% | J65: 14.39 | K65: 1.042 | L65: 0.5498 | M65: 0.5275 | P65: 4.164 | Q65: 85.72 | S65: 1.042
E66: 7.882 | F66: 3.46 | G66: 0.1433 | H66: 7.69% | I66: 0.51% | J66: 14.35 | K66: 1.045 | L66: 0.5493 | M66: 0.5255 | P66: 4.154 | Q66: 85.59 | S66: 1.045
E67: 7.954 | F67: 3.55 | G67: 0.1433 | H67: 7.89% | I67: 0.51% | J67: 14.31 | K67: 1.048 | L67: 0.5559 | M67: 0.5303 | P67: 4.145 | Q67: 85.48 | S67: 1.048
E68: 8.097 | F68: 3.65 | G68: 0.1432 | H68: 8.11% | I68: 0.51% | J68: 14.26 | K68: 1.052 | L68: 0.5676 | M68: 0.5398 | P68: 4.135 | Q68: 85.35 | S68: 1.052
E69: 8.117 | F69: 3.75 | G69: 0.1433 | H69: 8.33% | I69: 0.51% | J69: 14.22 | K69: 1.055 | L69: 0.5709 | M69: 0.5411 | P69: 4.125 | Q69: 85.22 | S69: 1.055
E70: 8.163 | F70: 3.85 | G70: 0.1441 | H70: 8.56% | I70: 0.51% | J70: 14.17 | K70: 1.058 | L70: 0.5759 | M70: 0.5442 | P70: 4.115 | Q70: 85.09 | S70: 1.058
E71: 8.148 | F71: 3.95 | G71: 0.1441 | H71: 8.78% | I71: 0.51% | J71: 14.13 | K71: 1.062 | L71: 0.5766 | M71: 0.5432 | P71: 4.105 | Q71: 84.96 | S71: 1.062
E72: 8.193 | F72: 4.05 | G72: 0.1441 | H72: 9.00% | I72: 0.51% | J72: 14.08 | K72: 1.065 | L72: 0.5817 | M72: 0.5462 | P72: 4.095 | Q72: 84.84 | S72: 1.065
E73: 8.397 | F73: 4.15 | G73: 0.1441 | H73: 9.22% | I73: 0.51% | J73: 14.04 | K73: 1.068 | L73: 0.5981 | M73: 0.5598 | P73: 4.085 | Q73: 84.71 | S73: 1.068
E74: 8.387 | F74: 4.25 | G74: 0.1441 | H74: 9.44% | I74: 0.51% | J74: 13.99 | K74: 1.072 | L74: 0.5993 | M74: 0.5591 | P74: 4.075 | Q74: 84.58 | S74: 1.072
E75: 8.311 | F75: 4.35 | G75: 0.1441 | H75: 9.67% | I75: 0.51% | J75: 13.95 | K75: 1.075 | L75: 0.5958 | M75: 0.5540 | P75: 4.065 | Q75: 84.45 | S75: 1.075
E76: 8.464 | F76: 4.45 | G76: 0.1441 | H76: 9.89% | I76: 0.51% | J76: 13.91 | K76: 1.079 | L76: 0.6087 | M76: 0.5642 | P76: 4.055 | Q76: 84.32 | S76: 1.079
E77: 8.693 | F77: 4.55 | G77: 0.1441 | H77: 10.11% | I77: 0.51% | J77: 13.86 | K77: 1.082 | L77: 0.6272 | M77: 0.5795 | P77: 4.045 | Q77: 84.20 | S77: 1.082
E78: 8.652 | F78: 4.65 | G78: 0.1441 | H78: 10.33% | I78: 0.51% | J78: 13.82 | K78: 1.086 | L78: 0.6263 | M78: 0.5768 | P78: 4.035 | Q78: 84.07 | S78: 1.086
E79: 8.770 | F79: 4.75 | G79: 0.1441 | H79: 10.56% | I79: 0.51% | J79: 13.77 | K79: 1.089 | L79: 0.6368 | M79: 0.5846 | P79: 4.025 | Q79: 83.94 | S79: 1.089
E80: 8.678 | F80: 4.85 | G80: 0.1441 | H80: 10.78% | I80: 0.51% | J80: 13.73 | K80: 1.093 | L80: 0.6322 | M80: 0.5785 | P80: 4.015 | Q80: 83.81 | S80: 1.093
E81: 8.719 | F81: 4.95 | G81: 0.1441 | H81: 11.00% | I81: 0.51% | J81: 13.68 | K81: 1.096 | L81: 0.6373 | M81: 0.5812 | P81: 4.005 | Q81: 83.68 | S81: 1.096
E82: 8.596 | F82: 5.04 | G82: 0.1441 | H82: 11.20% | I82: 0.51% | J82: 13.64 | K82: 1.100 | L82: 0.6302 | M82: 0.5731 | P82: 3.996 | Q82: 83.57 | S82: 1.100
E83: 8.637 | F83: 5.14 | G83: 0.1444 | H83: 11.42% | I83: 0.52% | J83: 13.60 | K83: 1.103 | L83: 0.6352 | M83: 0.5758 | P83: 3.986 | Q83: 83.44 | S83: 1.103
E84: 8.928 | F84: 5.24 | G84: 0.1444 | H84: 11.64% | I84: 0.52% | J84: 13.55 | K84: 1.107 | L84: 0.6588 | M84: 0.5952 | P84: 3.976 | Q84: 83.31 | S84: 1.107
E85: 8.872 | F85: 5.34 | G85: 0.1444 | H85: 11.87% | I85: 0.52% | J85: 13.51 | K85: 1.111 | L85: 0.6568 | M85: 0.5914 | P85: 3.966 | Q85: 83.18 | S85: 1.111
E86: 8.821 | F86: 5.44 | G86: 0.1444 | H86: 12.09% | I86: 0.52% | J86: 13.46 | K86: 1.114 | L86: 0.6552 | M86: 0.5880 | P86: 3.956 | Q86: 83.06 | S86: 1.114
E87: 8.887 | F87: 5.54 | G87: 0.1444 | H87: 12.31% | I87: 0.52% | J87: 13.42 | K87: 1.118 | L87: 0.6623 | M87: 0.5925 | P87: 3.946 | Q87: 82.93 | S87: 1.118
E88: 8.928 | F88: 5.63 | G88: 0.1444 | H88: 12.51% | I88: 0.52% | J88: 13.38 | K88: 1.121 | L88: 0.6674 | M88: 0.5952 | P88: 3.937 | Q88: 82.81 | S88: 1.121
E89: 9.014 | F89: 5.74 | G89: 0.1444 | H89: 12.76% | I89: 0.52% | J89: 13.33 | K89: 1.125 | L89: 0.6763 | M89: 0.6010 | P89: 3.926 | Q89: 82.67 | S89: 1.125
E90: 8.877 | F90: 5.84 | G90: 0.1444 | H90: 12.98% | I90: 0.52% | J90: 13.28 | K90: 1.129 | L90: 0.6682 | M90: 0.5918 | P90: 3.916 | Q90: 82.54 | S90: 1.129
E91: 8.846 | F91: 5.94 | G91: 0.1444 | H91: 13.20% | I91: 0.52% | J91: 13.24 | K91: 1.133 | L91: 0.6682 | M91: 0.5897 | P91: 3.906 | Q91: 82.41 | S91: 1.133
E92: 8.979 | F92: 6.04 | G92: 0.1444 | H92: 13.42% | I92: 0.52% | J92: 13.19 | K92: 1.137 | L92: 0.6805 | M92: 0.5986 | P92: 3.896 | Q92: 82.29 | S92: 1.137
E93: 9.075 | F93: 6.14 | G93: 0.1444 | H93: 13.64% | I93: 0.52% | J93: 13.15 | K93: 1.141 | L93: 0.6902 | M93: 0.6050 | P93: 3.886 | Q93: 82.16 | S93: 1.141
E94: 9.274 | F94: 6.24 | G94: 0.1444 | H94: 13.87% | I94: 0.52% | J94: 13.11 | K94: 1.145 | L94: 0.7077 | M94: 0.6183 | P94: 3.876 | Q94: 82.03 | S94: 1.145
E95: 9.422 | F95: 6.34 | G95: 0.1444 | H95: 14.09% | I95: 0.52% | J95: 13.06 | K95: 1.148 | L95: 0.7214 | M95: 0.6281 | P95: 3.866 | Q95: 81.90 | S95: 1.148
E96: 9.402 | F96: 6.44 | G96: 0.1444 | H96: 14.31% | I96: 0.52% | J96: 13.02 | K96: 1.152 | L96: 0.7223 | M96: 0.6268 | P96: 3.856 | Q96: 81.77 | S96: 1.152
E97: 9.336 | F97: 6.54 | G97: 0.1444 | H97: 14.53% | I97: 0.52% | J97: 12.97 | K97: 1.156 | L97: 0.7197 | M97: 0.6224 | P97: 3.846 | Q97: 81.64 | S97: 1.156
E98: 9.636 | F98: 6.65 | G98: 0.1444 | H98: 14.78% | I98: 0.52% | J98: 12.92 | K98: 1.161 | L98: 0.7457 | M98: 0.6424 | P98: 3.835 | Q98: 81.50 | S98: 1.161
E99: 9.840 | F99: 6.75 | G99: 0.1444 | H99: 15.00% | I99: 0.52% | J99: 12.88 | K99: 1.165 | L99: 0.7641 | M99: 0.6560 | P99: 3.825 | Q99: 81.37 | S99: 1.165
E100: 9.590 | F100: 6.85 | G100: 0.1444 | H100: 15.22% | I100: 0.52% | J100: 12.83 | K100: 1.169 | L100: 0.7473 | M100: 0.6394 | P100: 3.815 | Q100: 81.24 | S100: 1.169
E101: 9.759 | F101: 6.94 | G101: 0.1444 | H101: 15.42% | I101: 0.52% | J101: 12.79 | K101: 1.172 | L101: 0.7628 | M101: 0.6506 | P101: 3.806 | Q101: 81.13 | S101: 1.172
E102: 9.866 | F102: 7.04 | G102: 0.1444 | H102: 15.64% | I102: 0.52% | J102: 12.75 | K102: 1.177 | L102: 0.7738 | M102: 0.6577 | P102: 3.796 | Q102: 81.00 | S102: 1.177
E103: 9.805 | F103: 7.14 | G103: 0.1444 | H103: 15.87% | I103: 0.52% | J103: 12.70 | K103: 1.181 | L103: 0.7717 | M103: 0.6536 | P103: 3.786 | Q103: 80.87 | S103: 1.181
E104: 10.110 | F104: 7.24 | G104: 0.1444 | H104: 16.09% | I104: 0.52% | J104: 12.66 | K104: 1.185 | L104: 0.7986 | M104: 0.6740 | P104: 3.776 | Q104: 80.74 | S104: 1.185
E105: 10.279 | F105: 7.34 | G105: 0.1444 | H105: 16.31% | I105: 0.52% | J105: 12.62 | K105: 1.189 | L105: 0.8147 | M105: 0.6852 | P105: 3.766 | Q105: 80.61 | S105: 1.189
E106: 10.187 | F106: 7.44 | G106: 0.1444 | H106: 16.53% | I106: 0.52% | J106: 12.57 | K106: 1.193 | L106: 0.8103 | M106: 0.6791 | P106: 3.756 | Q106: 80.48 | S106: 1.193
E107: 10.238 | F107: 7.53 | G107: 0.1444 | H107: 16.73% | I107: 0.52% | J107: 12.53 | K107: 1.197 | L107: 0.8170 | M107: 0.6825 | P107: 3.747 | Q107: 80.37 | S107: 1.197
E108: 10.396 | F108: 7.63 | G108: 0.1444 | H108: 16.96% | I108: 0.52% | J108: 12.49 | K108: 1.201 | L108: 0.8325 | M108: 0.6931 | P108: 3.737 | Q108: 80.24 | S108: 1.201
E109: 10.437 | F109: 7.73 | G109: 0.1444 | H109: 17.18% | I109: 0.52% | J109: 12.44 | K109: 1.205 | L109: 0.8388 | M109: 0.6958 | P109: 3.727 | Q109: 80.11 | S109: 1.205
E110: 10.569 | F110: 7.83 | G110: 0.1444 | H110: 17.40% | I110: 0.52% | J110: 12.40 | K110: 1.210 | L110: 0.8525 | M110: 0.7046 | P110: 3.717 | Q110: 79.98 | S110: 1.210
E111: 10.768 | F111: 7.93 | G111: 0.1444 | H111: 17.62% | I111: 0.52% | J111: 12.35 | K111: 1.214 | L111: 0.8716 | M111: 0.7179 | P111: 3.707 | Q111: 79.85 | S111: 1.214
E112: 10.809 | F112: 8.03 | G112: 0.1444 | H112: 17.84% | I112: 0.52% | J112: 12.31 | K112: 1.219 | L112: 0.8781 | M112: 0.7206 | P112: 3.697 | Q112: 79.72 | S112: 1.219
E113: 10.554 | F113: 8.14 | G113: 0.1444 | H113: 18.09% | I113: 0.52% | J113: 12.26 | K113: 1.223 | L113: 0.8608 | M113: 0.7036 | P113: 3.686 | Q113: 79.58 | S113: 1.223
E114: 10.534 | F114: 8.23 | G114: 0.1444 | H114: 18.29% | I114: 0.52% | J114: 12.22 | K114: 1.227 | L114: 0.8619 | M114: 0.7022 | P114: 3.677 | Q114: 79.46 | S114: 1.227
E115: 10.763 | F115: 8.33 | G115: 0.1444 | H115: 18.51% | I115: 0.52% | J115: 12.18 | K115: 1.232 | L115: 0.8839 | M115: 0.7175 | P115: 3.667 | Q115: 79.33 | S115: 1.232
E116: 10.911 | F116: 8.44 | G116: 0.1444 | H116: 18.76% | I116: 0.52% | J116: 12.13 | K116: 1.237 | L116: 0.8996 | M116: 0.7274 | P116: 3.656 | Q116: 79.19 | S116: 1.237
E117: 11.273 | F117: 8.54 | G117: 0.1444 | H117: 18.98% | I117: 0.52% | J117: 12.08 | K117: 1.241 | L117: 0.9328 | M117: 0.7515 | P117: 3.646 | Q117: 79.06 | S117: 1.241
E118: 11.237 | F118: 8.64 | G118: 0.1444 | H118: 19.20% | I118: 0.52% | J118: 12.04 | K118: 1.246 | L118: 0.9333 | M118: 0.7492 | P118: 3.636 | Q118: 78.93 | S118: 1.246
E119: 10.998 | F119: 8.74 | G119: 0.1444 | H119: 19.42% | I119: 0.52% | J119: 12.00 | K119: 1.250 | L119: 0.9168 | M119: 0.7332 | P119: 3.626 | Q119: 78.80 | S119: 1.250
E120: 11.309 | F120: 8.84 | G120: 0.1444 | H120: 19.64% | I120: 0.52% | J120: 11.95 | K120: 1.255 | L120: 0.9462 | M120: 0.7539 | P120: 3.616 | Q120: 78.67 | S120: 1.255
E121: 11.487 | F121: 8.93 | G121: 0.1444 | H121: =+((F121/10)/$G$13) -> 19.84% | I121: =((+G121/10)/$G$14) -> 0.52% | J121: =+($G$13^2/2)*(Q121*PI()/180-((F121/10)/$G$13)*SIN(Q121*PI()/180)) -> 11.91 | K121: =+$H$26/J121 -> 1.259 | L121: =+E121/J121 -> 0.9643 | M121: =+L121/K121 -> 0.7658 | P121: =+$G$13-(F121/10) -> 3.607 | Q121: =+DEGREES(ACOS((F121/10)/$G$13)) -> 78.55 | S121: =+K121 -> 1.259
E122: 11.446 | F122: 9.03 | G122: 0.1444 | H122: 20.07% | I122: 0.52% | J122: 11.87 | K122: 1.264 | L122: 0.9644 | M122: 0.7631 | P122: 3.597 | Q122: 78.42 | S122: 1.264
E123: 11.625 | F123: 9.13 | G123: 0.1444 | H123: 20.29% | I123: 0.52% | J123: 11.82 | K123: 1.269 | L123: 0.9831 | M123: 0.7750 | P123: 3.587 | Q123: 78.29 | S123: 1.269
E124: 11.752 | F124: 9.23 | G124: 0.1444 | H124: 20.51% | I124: 0.52% | J124: 11.78 | K124: 1.273 | L124: 0.9976 | M124: 0.7835 | P124: 3.577 | Q124: 78.16 | S124: 1.273
E125: 11.890 | F125: 9.33 | G125: 0.1444 | H125: 20.73% | I125: 0.52% | J125: 11.74 | K125: 1.278 | L125: 1.0131 | M125: 0.7927 | P125: 3.567 | Q125: 78.03 | S125: 1.278
E126: 11.854 | F126: 9.42 | G126: 0.1444 | H126: 20.93% | I126: 0.52% | J126: 11.70 | K126: 1.282 | L126: 1.0135 | M126: 0.7903 | P126: 3.558 | Q126: 77.92 | S126: 1.282
E127: 11.926 | F127: 9.52 | G127: 0.1444 | H127: 21.16% | I127: 0.52% | J127: 11.65 | K127: 1.287 | L127: 1.0234 | M127: 0.7950 | P127: 3.548 | Q127: 77.79 | S127: 1.287
E128: 11.737 | F128: 9.62 | G128: 0.1444 | H128: 21.38% | I128: 0.52% | J128: 11.61 | K128: 1.292 | L128: 1.0111 | M128: 0.7825 | P128: 3.538 | Q128: 77.66 | S128: 1.292
E129: 11.834 | F129: 9.72 | G129: 0.1444 | H129: 21.60% | I129: 0.52% | J129: 11.56 | K129: 1.297 | L129: 1.0233 | M129: 0.7889 | P129: 3.528 | Q129: 77.53 | S129: 1.297
E130: 12.053 | F130: 9.82 | G130: 0.1444 | H130: 21.82% | I130: 0.52% | J130: 11.52 | K130: 1.302 | L130: 1.0462 | M130: 0.8035 | P130: 3.518 | Q130: 77.40 | S130: 1.302
E131: 12.298 | F131: 9.92 | G131: 0.1444 | H131: 22.04% | I131: 0.52% | J131: 11.48 | K131: 1.307 | L131: 1.0715 | M131: 0.8199 | P131: 3.508 | Q131: 77.26 | S131: 1.307
E132: 12.446 | F132: 10.02 | G132: 0.1444 | H132: 22.27% | I132: 0.52% | J132: 11.43 | K132: 1.312 | L132: 1.0886 | M132: 0.8297 | P132: 3.498 | Q132: 77.13 | S132: 1.312
E133: 12.695 | F133: 10.12 | G133: 0.1444 | H133: 22.49% | I133: 0.52% | J133: 11.39 | K133: 1.317 | L133: 1.1147 | M133: 0.8464 | P133: 3.488 | Q133: 77.00 | S133: 1.317
E134: 12.665 | F134: 10.22 | G134: 0.1444 | H134: 22.71% | I134: 0.52% | J134: 11.35 | K134: 1.322 | L134: 1.1163 | M134: 0.8443 | P134: 3.478 | Q134: 76.87 | S134: 1.322
E135: 12.481 | F135: 10.32 | G135: 0.1444 | H135: 22.93% | I135: 0.52% | J135: 11.30 | K135: 1.327 | L135: 1.1044 | M135: 0.8321 | P135: 3.468 | Q135: 76.74 | S135: 1.327
E136: 12.752 | F136: 10.42 | G136: 0.1444 | H136: 23.16% | I136: 0.52% | J136: 11.26 | K136: 1.332 | L136: 1.1327 | M136: 0.8501 | P136: 3.458 | Q136: 76.61 | S136: 1.332
E137: 12.828 | F137: 10.52 | G137: 0.1444 | H137: 23.38% | I137: 0.52% | J137: 11.21 | K137: 1.338 | L137: 1.1440 | M137: 0.8552 | P137: 3.448 | Q137: 76.48 | S137: 1.338
E138: 12.976 | F138: 10.63 | G138: 0.1444 | H138: 23.62% | I138: 0.52% | J138: 11.17 | K138: 1.343 | L138: 1.1621 | M138: 0.8651 | P138: 3.437 | Q138: 76.34 | S138: 1.343
E139: 13.292 | F139: 10.73 | G139: 0.1433 | H139: 23.84% | I139: 0.51% | J139: 11.12 | K139: 1.349 | L139: 1.1951 | M139: 0.8861 | P139: 3.427 | Q139: 76.21 | S139: 1.349
E140: 13.078 | F140: 10.82 | G140: 0.1433 | H140: 24.04% | I140: 0.51% | J140: 11.08 | K140: 1.353 | L140: 1.1800 | M140: 0.8719 | P140: 3.418 | Q140: 76.09 | S140: 1.353
E141: 13.190 | F141: 10.92 | G141: 0.1433 | H141: 24.27% | I141: 0.51% | J141: 11.04 | K141: 1.359 | L141: 1.1949 | M141: 0.8793 | P141: 3.408 | Q141: 75.96 | S141: 1.359
E142: 13.353 | F142: 11.01 | G142: 0.1433 | H142: 24.47% | I142: 0.51% | J142: 11.00 | K142: 1.364 | L142: 1.2140 | M142: 0.8902 | P142: 3.399 | Q142: 75.84 | S142: 1.364
E143: 13.634 | F143: 11.11 | G143: 0.1427 | H143: 24.69% | I143: 0.51% | J143: 10.96 | K143: 1.369 | L143: 1.2444 | M143: 0.9089 | P143: 3.389 | Q143: 75.71 | S143: 1.369
E144: 14.077 | F144: 11.21 | G144: 0.1418 | H144: 24.91% | I144: 0.51% | J144: 10.91 | K144: 1.375 | L144: 1.2900 | M144: 0.9385 | P144: 3.379 | Q144: 75.58 | S144: 1.375
E145: 13.725 | F145: 11.31 | G145: 0.1418 | H145: 25.13% | I145: 0.51% | J145: 10.87 | K145: 1.380 | L145: 1.2628 | M145: 0.9150 | P145: 3.369 | Q145: 75.44 | S145: 1.380
E146: 13.547 | F146: 11.41 | G146: 0.1418 | H146: 25.36% | I146: 0.51% | J146: 10.83 | K146: 1.386 | L146: 1.2514 | M146: 0.9031 | P146: 3.359 | Q146: 75.31 | S146: 1.386
E147: 13.414 | F147: 11.50 | G147: 0.1418 | H147: 25.56% | I147: 0.51% | J147: 10.79 | K147: 1.391 | L147: 1.2437 | M147: 0.8943 | P147: 3.35 | Q147: 75.19 | S147: 1.391
E148: 13.700 | F148: 11.60 | G148: 0.1405 | H148: 25.78% | I148: 0.50% | J148: 10.74 | K148: 1.396 | L148: 1.2753 | M148: 0.9133 | P148: 3.34 | Q148: 75.06 | S148: 1.396
E149: 13.521 | F149: 11.70 | G149: 0.1400 | H149: 26.00% | I149: 0.50% | J149: 10.70 | K149: 1.402 | L149: 1.2638 | M149: 0.9014 | P149: 3.33 | Q149: 74.93 | S149: 1.402
E150: 13.730 | F150: 11.80 | G150: 0.1400 | H150: 26.22% | I150: 0.50% | J150: 10.66 | K150: 1.408 | L150: 1.2885 | M150: 0.9154 | P150: 3.32 | Q150: 74.80 | S150: 1.408
E151: 13.873 | F151: 11.91 | G151: 0.1400 | H151: 26.47% | I151: 0.50% | J151: 10.61 | K151: 1.414 | L151: 1.3078 | M151: 0.9249 | P151: 3.309 | Q151: 74.65 | S151: 1.414
E152: 14.159 | F152: 12.01 | G152: 0.1400 | H152: 26.69% | I152: 0.50% | J152: 10.56 | K152: 1.420 | L152: 1.3402 | M152: 0.9439 | P152: 3.299 | Q152: 74.52 | S152: 1.420
E153: 13.889 | F153: 12.10 | G153: 0.1400 | H153: 26.89% | I153: 0.50% | J153: 10.53 | K153: 1.425 | L153: 1.3195 | M153: 0.9259 | P153: 3.29 | Q153: 74.40 | S153: 1.425
E154: 13.924 | F154: 12.20 | G154: 0.1400 | H154: 27.11% | I154: 0.50% | J154: 10.48 | K154: 1.431 | L154: 1.3284 | M154: 0.9283 | P154: 3.28 | Q154: 74.27 | S154: 1.431
E155: 14.266 | F155: 12.31 | G155: 0.1400 | H155: 27.36% | I155: 0.50% | J155: 10.43 | K155: 1.438 | L155: 1.3672 | M155: 0.9511 | P155: 3.269 | Q155: 74.12 | S155: 1.438
E156: 14.159 | F156: 12.41 | G156: 0.1383 | H156: 27.58% | I156: 0.49% | J156: 10.39 | K156: 1.443 | L156: 1.3625 | M156: 0.9439 | P156: 3.259 | Q156: 73.99 | S156: 1.443
E157: 13.639 | F157: 12.51 | G157: 0.1383 | H157: 27.80% | I157: 0.49% | J157: 10.35 | K157: 1.450 | L157: 1.3180 | M157: 0.9092 | P157: 3.249 | Q157: 73.86 | S157: 1.450
E158: 14.021 | F158: 12.61 | G158: 0.1375 | H158: 28.02% | I158: 0.49% | J158: 10.30 | K158: 1.456 | L158: 1.3606 | M158: 0.9347 | P158: 3.239 | Q158: 73.73 | S158: 1.456
E159: 14.184 | F159: 12.72 | G159: 0.1375 | H159: 28.27% | I159: 0.49% | J159: 10.26 | K159: 1.462 | L159: 1.3828 | M159: 0.9456 | P159: 3.228 | Q159: 73.58 | S159: 1.462
E160: 13.991 | F160: 12.81 | G160: 0.1365 | H160: 28.47% | I160: 0.49% | J160: 10.22 | K160: 1.468 | L160: 1.3691 | M160: 0.9327 | P160: 3.219 | Q160: 73.46 | S160: 1.468
E161: 14.072 | F161: 12.90 | G161: 0.1357 | H161: 28.67% | I161: 0.48% | J161: 10.18 | K161: 1.474 | L161: 1.3823 | M161: 0.9381 | P161: 3.21 | Q161: 73.34 | S161: 1.474
E162: 14.169 | F162: 13.01 | G162: 0.1351 | H162: 28.91% | I162: 0.48% | J162: 10.13 | K162: 1.480 | L162: 1.3984 | M162: 0.9446 | P162: 3.199 | Q162: 73.20 | S162: 1.480
E163: 14.072 | F163: 13.11 | G163: 0.1340 | H163: 29.13% | I163: 0.48% | J163: 10.09 | K163: 1.487 | L163: 1.3947 | M163: 0.9381 | P163: 3.189 | Q163: 73.06 | S163: 1.487
E164: 14.322 | F164: 13.21 | G164: 0.1340 | H164: 29.36% | I164: 0.48% | J164: 10.05 | K164: 1.493 | L164: 1.4256 | M164: 0.9548 | P164: 3.179 | Q164: 72.93 | S164: 1.493
E165: 14.286 | F165: 13.30 | G165: 0.1335 | H165: 29.56% | I165: 0.48% | J165: 10.01 | K165: 1.499 | L165: 1.4275 | M165: 0.9524 | P165: 3.17 | Q165: 72.81 | S165: 1.499
E166: 14.414 | F166: 13.40 | G166: 0.1330 | H166: 29.78% | I166: 0.48% | J166: 9.96 | K166: 1.505 | L166: 1.4465 | M166: 0.9609 | P166: 3.16 | Q166: 72.68 | S166: 1.505
E167: 14.475 | F167: 13.49 | G167: 0.1323 | H167: 29.98% | I167: 0.47% | J167: 9.93 | K167: 1.511 | L167: 1.4583 | M167: 0.9650 | P167: 3.151 | Q167: 72.56 | S167: 1.511
E168: 14.653 | F168: 13.59 | G168: 0.1319 | H168: 30.20% | I168: 0.47% | J168: 9.88 | K168: 1.518 | L168: 1.4827 | M168: 0.9769 | P168: 3.141 | Q168: 72.42 | S168: 1.518
E169: 14.531 | F169: 13.69 | G169: 0.1318 | H169: 30.42% | I169: 0.47% | J169: 9.84 | K169: 1.524 | L169: 1.4767 | M169: 0.9687 | P169: 3.131 | Q169: 72.29 | S169: 1.524
E170: 14.444 | F170: 13.80 | G170: 0.1311 | H170: 30.67% | I170: 0.47% | J170: 9.79 | K170: 1.532 | L170: 1.4749 | M170: 0.9630 | P170: 3.12 | Q170: 72.14 | S170: 1.532
E171: 14.383 | F171: 13.90 | G171: 0.1303 | H171: 30.89% | I171: 0.47% | J171: 9.75 | K171: 1.538 | L171: 1.4752 | M171: 0.9589 | P171: 3.11 | Q171: 72.01 | S171: 1.538
E172: 14.485 | F172: 14.00 | G172: 0.1302 | H172: 31.11% | I172: 0.47% | J172: 9.71 | K172: 1.545 | L172: 1.4922 | M172: 0.9657 | P172: 3.1 | Q172: 71.87 | S172: 1.545
E173: 14.786 | F173: 14.09 | G173: 0.1293 | H173: 31.31% | I173: 0.46% | J173: 9.67 | K173: 1.551 | L173: 1.5292 | M173: 0.9857 | P173: 3.091 | Q173: 71.75 | S173: 1.551
E174: 14.806 | F174: 14.19 | G174: 0.1292 | H174: 31.53% | I174: 0.46% | J174: 9.63 | K174: 1.558 | L174: 1.5381 | M174: 0.9871 | P174: 3.081 | Q174: 71.62 | S174: 1.558
E175: 14.602 | F175: 14.30 | G175: 0.1287 | H175: 31.78% | I175: 0.46% | J175: 9.58 | K175: 1.566 | L175: 1.5244 | M175: 0.9735 | P175: 3.07 | Q175: 71.47 | S175: 1.566
E176: 14.470 | F176: 14.40 | G176: 0.1287 | H176: 32.00% | I176: 0.46% | J176: 9.54 | K176: 1.573 | L176: 1.5173 | M176: 0.9647 | P176: 3.06 | Q176: 71.34 | S176: 1.573
E177: 14.495 | F177: 14.50 | G177: 0.1287 | H177: 32.22% | I177: 0.46% | J177: 9.49 | K177: 1.580 | L177: 1.5268 | M177: 0.9664 | P177: 3.05 | Q177: 71.20 | S177: 1.580
E178: 14.546 | F178: 14.60 | G178: 0.1281 | H178: 32.44% | I178: 0.46% | J178: 9.45 | K178: 1.587 | L178: 1.5390 | M178: 0.9698 | P178: 3.04 | Q178: 71.07 | S178: 1.587
E179: 14.964 | F179: 14.70 | G179: 0.1281 | H179: 32.67% | I179: 0.46% | J179: 9.41 | K179: 1.594 | L179: 1.5904 | M179: 0.9976 | P179: 3.03 | Q179: 70.93 | S179: 1.594
E180: 14.857 | F180: 14.80 | G180: 0.1274 | H180: 32.89% | I180: 0.46% | J180: 9.37 | K180: 1.601 | L180: 1.5862 | M180: 0.9905 | P180: 3.02 | Q180: 70.80 | S180: 1.601
E181: 14.816 | F181: 14.89 | G181: 0.1270 | H181: 33.09% | I181: 0.45% | J181: 9.33 | K181: 1.608 | L181: 1.5884 | M181: 0.9878 | P181: 3.011 | Q181: 70.68 | S181: 1.608
E182: 14.816 | F182: 14.99 | G182: 0.1268 | H182: 33.31% | I182: 0.45% | J182: 9.29 | K182: 1.615 | L182: 1.5956 | M182: 0.9878 | P182: 3.001 | Q182: 70.54 | S182: 1.615
E183: 15.102 | F183: 15.09 | G183: 0.1268 | H183: 33.53% | I183: 0.45% | J183: 9.24 | K183: 1.623 | L183: 1.6338 | M183: 1.0068 | P183: 2.991 | Q183: 70.41 | S183: 1.623
E184: 14.806 | F184: 15.19 | G184: 0.1264 | H184: 33.76% | I184: 0.45% | J184: 9.20 | K184: 1.630 | L184: 1.6092 | M184: 0.9871 | P184: 2.981 | Q184: 70.27 | S184: 1.630
E185: 15.000 | F185: 15.29 | G185: 0.1264 | H185: =+((F185/10)/$G$13) -> 33.98% | I185: =((+G185/10)/$G$14) -> 0.45% | J185: =+($G$13^2/2)*(Q185*PI()/180-((F185/10)/$G$13)*SIN(Q185*PI()/180)) -> 9.16 | K185: =+$H$26/J185 -> 1.638 | L185: =+E185/J185 -> 1.6378 | M185: =+L185/K185 -> 1.0000 | P185: =+$G$13-(F185/10) -> 2.971 | Q185: =+DEGREES(ACOS((F185/10)/$G$13)) -> 70.14 | S185: =+K185 -> 1.638
E186: 15.015 | F186: 15.38 | G186: 0.1263 | H186: 34.18% | I186: 0.45% | J186: 9.12 | K186: 1.645 | L186: 1.6463 | M186: 1.0010 | P186: 2.962 | Q186: 70.01 | S186: 1.645
E187: 15.087 | F187: 15.48 | G187: 0.1253 | H187: 34.40% | I187: 0.45% | J187: 9.08 | K187: 1.652 | L187: 1.6619 | M187: 1.0058 | P187: 2.952 | Q187: 69.88 | S187: 1.652
E188: 15.127 | F188: 15.58 | G188: 0.1246 | H188: 34.62% | I188: 0.45% | J188: 9.04 | K188: 1.660 | L188: 1.6741 | M188: 1.0085 | P188: 2.942 | Q188: 69.74 | S188: 1.660
E189: 14.597 | F189: 15.68 | G189: 0.1246 | H189: 34.84% | I189: 0.45% | J189: 8.99 | K189: 1.668 | L189: 1.6230 | M189: 0.9731 | P189: 2.932 | Q189: 69.61 | S189: 1.668
E190: 14.918 | F190: 15.78 | G190: 0.1246 | H190: 35.07% | I190: 0.45% | J190: 8.95 | K190: 1.676 | L190: 1.6666 | M190: 0.9946 | P190: 2.922 | Q190: 69.47 | S190: 1.676
E191: 14.913 | F191: 15.88 | G191: 0.1246 | H191: 35.29% | I191: 0.45% | J191: 8.91 | K191: 1.684 | L191: 1.6739 | M191: 0.9942 | P191: 2.912 | Q191: 69.34 | S191: 1.684
E192: 15.015 | F192: 15.98 | G192: 0.1237 | H192: 35.51% | I192: 0.44% | J192: 8.87 | K192: 1.692 | L192: 1.6933 | M192: 1.0010 | P192: 2.902 | Q192: 69.20 | S192: 1.692
E193: 14.725 | F193: 16.08 | G193: 0.1237 | H193: 35.73% | I193: 0.44% | J193: 8.83 | K193: 1.700 | L193: 1.6684 | M193: 0.9816 | P193: 2.892 | Q193: 69.06 | S193: 1.700
E194: 14.638 | F194: 16.18 | G194: 0.1237 | H194: 35.96% | I194: 0.44% | J194: 8.78 | K194: 1.708 | L194: 1.6666 | M194: 0.9759 | P194: 2.882 | Q194: 68.93 | S194: 1.708
E195: 14.873 | F195: 16.28 | G195: 0.1237 | H195: 36.18% | I195: 0.44% | J195: 8.74 | K195: 1.716 | L195: 1.7014 | M195: 0.9915 | P195: 2.872 | Q195: 68.79 | S195: 1.716
E196: 14.852 | F196: 16.38 | G196: 0.1237 | H196: 36.40% | I196: 0.44% | J196: 8.70 | K196: 1.724 | L196: 1.7072 | M196: 0.9901 | P196: 2.862 | Q196: 68.65 | S196: 1.724
E197: 15.097 | F197: 16.48 | G197: 0.1237 | H197: 36.62% | I197: 0.44% | J197: 8.66 | K197: 1.733 | L197: 1.7438 | M197: 1.0065 | P197: 2.852 | Q197: 68.52 | S197: 1.733
E198: 15.194 | F198: 16.58 | G198: 0.1237 | H198: 36.84% | I198: 0.44% | J198: 8.62 | K198: 1.741 | L198: 1.7635 | M198: 1.0129 | P198: 2.842 | Q198: 68.38 | S198: 1.741
E199: 14.857 | F199: 16.68 | G199: 0.1237 | H199: 37.07% | I199: 0.44% | J199: 8.57 | K199: 1.749 | L199: 1.7328 | M199: 0.9905 | P199: 2.832 | Q199: 68.24 | S199: 1.749
E200: 14.898 | F200: 16.78 | G200: 0.1237 | H200: 37.29% | I200: 0.44% | J200: 8.53 | K200: 1.758 | L200: 1.7461 | M200: 0.9932 | P200: 2.822 | Q200: 68.11 | S200: 1.758
E201: 14.740 | F201: 16.88 | G201: 0.1237 | H201: 37.51% | I201: 0.44% | J201: 8.49 | K201: 1.767 | L201: 1.7361 | M201: 0.9827 | P201: 2.812 | Q201: 67.97 | S201: 1.767
E202: 14.908 | F202: 16.97 | G202: 0.1237 | H202: 37.71% | I202: 0.44% | J202: 8.45 | K202: 1.775 | L202: 1.7637 | M202: 0.9939 | P202: 2.803 | Q202: 67.85 | S202: 1.775
E203: 14.735 | F203: 17.07 | G203: 0.1237 | H203: 37.93% | I203: 0.44% | J203: 8.41 | K203: 1.783 | L203: 1.7518 | M203: 0.9823 | P203: 2.793 | Q203: 67.71 | S203: 1.783
E204: 14.689 | F204: 17.17 | G204: 0.1237 | H204: 38.16% | I204: 0.44% | J204: 8.37 | K204: 1.792 | L204: 1.7550 | M204: 0.9793 | P204: 2.783 | Q204: 67.57 | S204: 1.792
E205: 14.735 | F205: 17.27 | G205: 0.1237 | H205: 38.38% | I205: 0.44% | J205: 8.33 | K205: 1.801 | L205: 1.7693 | M205: 0.9823 | P205: 2.773 | Q205: 67.43 | S205: 1.801
E206: 14.643 | F206: 17.36 | G206: 0.1237 | H206: 38.58% | I206: 0.44% | J206: 8.29 | K206: 1.809 | L206: 1.7662 | M206: 0.9762 | P206: 2.764 | Q206: 67.31 | S206: 1.809
E207: 14.745 | F207: 17.46 | G207: 0.1237 | H207: 38.80% | I207: 0.44% | J207: 8.25 | K207: 1.818 | L207: 1.7875 | M207: 0.9830 | P207: 2.754 | Q207: 67.17 | S207: 1.818
... 44 more rows

Sheet CD C wn
G3: ENSAYO DE CORTE DIRECTO
U5: galleta A
D6: Proyecto: | E6: =+'CD A wn'!E6 -> 0.00 | H6: Cliente | I6: =+'CD A wn'!I6 -> 0 | L6: Muestra | M6: =+'CD A wn'!M6 -> Muestra 17
D7: Sondeo: | E7: =+'CD A wn'!E7 -> Sondeo 6 | H7: Profundidad: | I7: =+'CD A wn'!I7 -> 0.00 | J7: A | K7: =+'CD A wn'!K7 -> 0.00 | L7: Fecha | M7: =+'CD A wn'!M7:N7 -> 00:00:00
B8: Galleta 1 | D8: Galleta : | E8: C
D9: Tipo Muestra: | E9: =+'CD A wn'!E9 -> 0.00
E11: Descripcion de la muestra
E13: Diámetro (cm) | G13: 4.50 | K13: Humedad natural | L13: Inicial | M13: Final
B14: DIAMETROS | E14: Altura (cm) | G14: 2.80 | K14: Recipiente
A15: 5 | B15: 5 | C15: =+(A15+B15)/2 -> 5 | E15: Peso del anillo + muestra (g) | K15: Peso recipiente (g)
A16: 5 | B16: 5 | C16: 5 | E16: Peso del anillo (g) | K16: Peso rec + m. humeda (g)
A17: 5 | B17: 5 | C17: 5 | E17: Peso de la muestra (g) | G17: =+G15-G16 -> 0.00 | K17: Peso rec + m. seca (g)
B18: ALTURAS | E18: Peso seco (g) | G18: =+G22*G20 -> 0.00 | K18: Wn (%) | L18: 29.00% | M18: 32.00%
A19: 2.18 | B19: 2.18 | C19: 2.18 | E19: Area (cm2) | G19: =+(PI()*G13^2)/4 -> 15.90
A20: 2.18 | B20: 2.18 | C20: 2.18 | E20: Volumen (cm3) | G20: =+G14*G19 -> 44.53
A21: 2.18 | B21: 2.18 | C21: 2.18 | E21: Peso unitario total (g/cm3) | G21: =+G17/G20 -> 0.00
E22: Peso unitario seco (g/cm3 | G22: =+G21/(1+(L18)) -> 0.00
B23: 52.42 | E23: Altura final (despues del ensayo de corte) | G23: =+G14-(G246/10) -> 2.80
B25: 322.87 | E25: Pesa de carga (kg) | I25: Peso piedra porosa (kg) | L25: =+M25/1000 -> 0.0000
B26: 289.4 | E26: Carga normal (kg) | H26: 32 | I26: Velocidad de corte (mm/min)
E27: Esfuerzo normal inicial (kg/cm2) | H27: =+H26/G19 -> 2.01 | I27: Peso del bloque de carga (kg) | L27: =+M27/1000 -> 0.0000
E28: Carga (Kg) | F28: Lectura del deformímetro horizontal (mm) | G28: Lectura del deformímetro vertical(mm) | H28: Deformación horizontal (%) | I28: Deformación vertical (%) | J28: Area corregida (cm2) | K28: Esfuerzo normal (Kg/cm2) | L28: Esfuerzo cortante (Kg/cm2) | M28: Relación t/s | Q28: Angulo E para area corregida
P30: DFINAL
E31: 0.018 | F31: 0.00 | G31: 0.0000 | H31: =+((F31/10)/$G$13) -> 0.00% | I31: =((+G31/10)/$G$14) -> 0.00% | J31: =+($G$13^2/2)*(Q31*PI()/180-((F31/10)/$G$13)*SIN(Q31*PI()/180)) -> 15.90 | K31: =+$H$26/J31 -> 2.012 | L31: =+E31/J31 -> 0.0012 | M31: =+L31/K31 -> 0.0006 | P31: =+$G$13-(F31/10) -> 4.5 | Q31: =+DEGREES(ACOS((F31/10)/$G$13)) -> 90.00 | R31: 3132470941.000 | S31: =+K31 -> 2.012
E32: 1.242 | F32: 0.07 | G32: 0.0068 | H32: 0.16% | I32: =((+G32/10)/$G$14) -> 0.02% | J32: 15.87 | K32: 2.016 | L32: =+E32/J32 -> 0.0782 | M32: =+L32/K32 -> 0.0388 | P32: 4.493 | Q32: 89.91 | S32: 2.016
E33: 1.364 | F33: 0.16 | G33: 0.0068 | H33: 0.36% | I33: 0.02% | J33: 15.83 | K33: 2.021 | L33: =+E33/J33 -> 0.0862 | M33: 0.0426 | P33: 4.484 | Q33: 89.80 | S33: 2.021
E34: 1.407 | F34: 0.26 | G34: 0.0068 | H34: 0.58% | I34: 0.02% | J34: 15.79 | K34: 2.027 | L34: 0.0891 | M34: 0.0440 | P34: 4.474 | Q34: 89.67 | R34: 3108712702.000 | S34: 2.027
E35: 5.182 | F35: 0.35 | G35: 0.0068 | H35: 0.78% | I35: 0.02% | J35: 15.75 | K35: 2.032 | L35: 0.3291 | M35: 0.1619 | P35: 4.465 | Q35: 89.55 | S35: 2.032
E36: 8.015 | F36: 0.44 | G36: 0.0068 | H36: 0.98% | I36: 0.02% | J36: 15.71 | K36: 2.037 | L36: 0.5103 | M36: 0.2505 | P36: 4.456 | Q36: 89.44 | S36: 2.037
E37: 9.618 | F37: 0.53 | G37: 0.0068 | H37: 1.18% | I37: 0.02% | J37: 15.67 | K37: 2.043 | L37: 0.6139 | M37: 0.3006 | P37: 4.447 | Q37: 89.33 | S37: 2.043
E38: 10.940 | F38: 0.63 | G38: 0.0068 | H38: 1.40% | I38: 0.02% | J38: 15.62 | K38: 2.049 | L38: 0.7003 | M38: 0.3419 | P38: 4.437 | Q38: 89.20 | S38: 2.049
E39: 12.041 | F39: 0.73 | G39: 0.0068 | H39: 1.62% | I39: 0.02% | J39: 15.58 | K39: 2.054 | L39: 0.7730 | M39: 0.3763 | P39: 4.427 | Q39: 89.07 | S39: 2.054
E40: 12.591 | F40: 0.82 | G40: 0.0068 | H40: 1.82% | I40: 0.02% | J40: 15.54 | K40: 2.060 | L40: 0.8105 | M40: 0.3935 | P40: 4.418 | Q40: 88.96 | S40: 2.060
E41: 13.160 | F41: 0.91 | G41: 0.0079 | H41: 2.02% | I41: 0.03% | J41: 15.49 | K41: 2.065 | L41: 0.8493 | M41: 0.4113 | P41: 4.409 | Q41: 88.84 | S41: 2.065
E42: 13.717 | F42: 1.01 | G42: 0.0087 | H42: 2.24% | I42: 0.03% | J42: 15.45 | K42: 2.071 | L42: 0.8879 | M42: 0.4287 | P42: 4.399 | Q42: 88.71 | S42: 2.071
E43: 14.188 | F43: 1.11 | G43: 0.0089 | H43: 2.47% | I43: 0.03% | J43: 15.40 | K43: 2.077 | L43: 0.9210 | M43: 0.4434 | P43: 4.389 | Q43: 88.59 | S43: 2.077
E44: 14.727 | F44: 1.21 | G44: 0.0099 | H44: 2.69% | I44: 0.04% | J44: 15.36 | K44: 2.083 | L44: 0.9588 | M44: 0.4602 | P44: 4.379 | Q44: 88.46 | S44: 2.083
E45: 15.186 | F45: 1.31 | G45: 0.0107 | H45: 2.91% | I45: 0.04% | J45: 15.31 | K45: 2.089 | L45: 0.9916 | M45: 0.4746 | P45: 4.369 | Q45: 88.33 | S45: 2.089
E46: 15.485 | F46: 1.40 | G46: 0.0107 | H46: 3.11% | I46: 0.04% | J46: 15.27 | K46: 2.095 | L46: 1.0138 | M46: 0.4839 | P46: 4.36 | Q46: 88.22 | S46: 2.095
E47: 15.467 | F47: 1.50 | G47: 0.0113 | H47: 3.33% | I47: 0.04% | J47: 15.23 | K47: 2.101 | L47: 1.0156 | M47: 0.4833 | P47: 4.35 | Q47: 88.09 | S47: 2.101
E48: 15.271 | F48: 1.59 | G48: 0.0121 | H48: 3.53% | I48: 0.04% | J48: 15.19 | K48: 2.107 | L48: 1.0054 | M48: 0.4772 | P48: 4.341 | Q48: 87.98 | S48: 2.107
E49: 16.201 | F49: 1.69 | G49: 0.0128 | H49: 3.76% | I49: 0.05% | J49: 15.14 | K49: 2.113 | L49: 1.0698 | M49: 0.5063 | P49: 4.331 | Q49: 87.85 | S49: 2.113
E50: 16.415 | F50: 1.79 | G50: 0.0132 | H50: =+((F50/10)/$G$13) -> 3.98% | I50: =((+G50/10)/$G$14) -> 0.05% | J50: =+($G$13^2/2)*(Q50*PI()/180-((F50/10)/$G$13)*SIN(Q50*PI()/180)) -> 15.10 | K50: =+$H$26/J50 -> 2.119 | L50: =+E50/J50 -> 1.0872 | M50: =+L50/K50 -> 0.5130 | P50: =+$G$13-(F50/10) -> 4.321 | Q50: =+DEGREES(ACOS((F50/10)/$G$13)) -> 87.72 | S50: =+K50 -> 2.119
E51: 16.269 | F51: 1.90 | G51: 0.0139 | H51: 4.22% | I51: 0.05% | J51: 15.05 | K51: 2.126 | L51: 1.0810 | M51: 0.5084 | P51: 4.31 | Q51: 87.58 | S51: 2.126
E52: 16.556 | F52: 1.99 | G52: 0.0140 | H52: 4.42% | I52: 0.05% | J52: 15.01 | K52: 2.132 | L52: 1.1031 | M52: 0.5174 | P52: 4.301 | Q52: 87.47 | S52: 2.132
E53: 16.483 | F53: 2.09 | G53: 0.0147 | H53: 4.64% | I53: 0.05% | J53: 14.96 | K53: 2.138 | L53: 1.1015 | M53: 0.5151 | P53: 4.291 | Q53: 87.34 | S53: 2.138
E54: 16.581 | F54: 2.19 | G54: 0.0152 | H54: 4.87% | I54: 0.05% | J54: 14.92 | K54: 2.145 | L54: 1.1114 | M54: 0.5181 | P54: 4.281 | Q54: 87.21 | S54: 2.145
E55: 17.186 | F55: 2.29 | G55: 0.0161 | H55: 5.09% | I55: 0.06% | J55: 14.87 | K55: 2.151 | L55: 1.1554 | M55: 0.5371 | P55: 4.271 | Q55: 87.08 | S55: 2.151
E56: 17.608 | F56: 2.40 | G56: 0.0174 | H56: 5.33% | I56: 0.06% | J56: 14.82 | K56: 2.159 | L56: 1.1878 | M56: 0.5503 | P56: 4.26 | Q56: 86.94 | S56: 2.159
E57: 18.233 | F57: 2.50 | G57: 0.0174 | H57: 5.56% | I57: 0.06% | J57: 14.78 | K57: 2.165 | L57: 1.2336 | M57: 0.5698 | P57: 4.25 | Q57: 86.82 | S57: 2.165
E58: 18.392 | F58: 2.61 | G58: 0.0176 | H58: 5.80% | I58: 0.06% | J58: 14.73 | K58: 2.172 | L58: 1.2485 | M58: 0.5747 | P58: 4.239 | Q58: 86.67 | S58: 2.172
E59: 18.110 | F59: 2.71 | G59: 0.0177 | H59: 6.02% | I59: 0.06% | J59: 14.69 | K59: 2.179 | L59: 1.2332 | M59: 0.5659 | P59: 4.229 | Q59: 86.55 | S59: 2.179
E60: 18.771 | F60: 2.80 | G60: 0.0182 | H60: 6.22% | I60: 0.07% | J60: 14.65 | K60: 2.185 | L60: 1.2817 | M60: 0.5866 | P60: 4.22 | Q60: 86.43 | S60: 2.185
E61: 18.820 | F61: 2.89 | G61: 0.0182 | H61: 6.42% | I61: 0.07% | J61: 14.60 | K61: 2.191 | L61: 1.2886 | M61: 0.5881 | P61: 4.211 | Q61: 86.32 | S61: 2.191
E62: 18.581 | F62: 2.99 | G62: 0.0182 | H62: 6.64% | I62: 0.07% | J62: 14.56 | K62: 2.198 | L62: 1.2762 | M62: 0.5807 | P62: 4.201 | Q62: 86.19 | S62: 2.198
E63: 18.771 | F63: 3.09 | G63: 0.0182 | H63: 6.87% | I63: 0.07% | J63: 14.51 | K63: 2.205 | L63: 1.2932 | M63: 0.5866 | P63: 4.191 | Q63: 86.06 | S63: 2.205
E64: 18.967 | F64: 3.19 | G64: 0.0192 | H64: 7.09% | I64: 0.07% | J64: 14.47 | K64: 2.211 | L64: 1.3108 | M64: 0.5927 | P64: 4.181 | Q64: 85.93 | S64: 2.211
E65: 19.150 | F65: 3.29 | G65: 0.0192 | H65: 7.31% | I65: 0.07% | J65: 14.43 | K65: 2.218 | L65: 1.3276 | M65: 0.5984 | P65: 4.171 | Q65: 85.81 | S65: 2.218
E66: 19.725 | F66: 3.38 | G66: 0.0192 | H66: 7.51% | I66: 0.07% | J66: 14.38 | K66: 2.225 | L66: 1.3713 | M66: 0.6164 | P66: 4.162 | Q66: 85.69 | S66: 2.225
E67: 19.921 | F67: 3.47 | G67: 0.0192 | H67: 7.71% | I67: 0.07% | J67: 14.34 | K67: 2.231 | L67: 1.3888 | M67: 0.6225 | P67: 4.153 | Q67: 85.58 | S67: 2.231
E68: 19.823 | F68: 3.57 | G68: 0.0202 | H68: 7.93% | I68: 0.07% | J68: 14.30 | K68: 2.238 | L68: 1.3863 | M68: 0.6195 | P68: 4.143 | Q68: 85.45 | S68: 2.238
E69: 19.750 | F69: 3.67 | G69: 0.0202 | H69: 8.16% | I69: 0.07% | J69: 14.25 | K69: 2.245 | L69: 1.3855 | M69: 0.6172 | P69: 4.133 | Q69: 85.32 | S69: 2.245
E70: 20.190 | F70: 3.77 | G70: 0.0202 | H70: 8.38% | I70: 0.07% | J70: 14.21 | K70: 2.252 | L70: 1.4209 | M70: 0.6309 | P70: 4.123 | Q70: 85.19 | S70: 2.252
E71: 20.135 | F71: 3.87 | G71: 0.0203 | H71: 8.60% | I71: 0.07% | J71: 14.16 | K71: 2.259 | L71: 1.4215 | M71: 0.6292 | P71: 4.113 | Q71: 85.07 | S71: 2.259
E72: 19.854 | F72: 3.97 | G72: 0.0209 | H72: 8.82% | I72: 0.07% | J72: 14.12 | K72: 2.266 | L72: 1.4061 | M72: 0.6204 | P72: 4.103 | Q72: 84.94 | S72: 2.266
E73: 20.429 | F73: 4.06 | G73: 0.0209 | H73: 9.02% | I73: 0.07% | J73: 14.08 | K73: 2.273 | L73: 1.4509 | M73: 0.6384 | P73: 4.094 | Q73: 84.82 | S73: 2.273
E74: 20.692 | F74: 4.16 | G74: 0.0209 | H74: 9.24% | I74: 0.07% | J74: 14.03 | K74: 2.280 | L74: 1.4743 | M74: 0.6466 | P74: 4.084 | Q74: 84.70 | S74: 2.280
E75: 20.282 | F75: 4.27 | G75: 0.0209 | H75: 9.49% | I75: 0.07% | J75: 13.99 | K75: 2.288 | L75: 1.4502 | M75: 0.6338 | P75: 4.073 | Q75: 84.56 | S75: 2.288
E76: 20.557 | F76: 4.37 | G76: 0.0211 | H76: 9.71% | I76: 0.08% | J76: 13.94 | K76: 2.295 | L76: 1.4746 | M76: 0.6424 | P76: 4.063 | Q76: 84.43 | S76: 2.295
E77: 20.661 | F77: 4.47 | G77: 0.0211 | H77: 9.93% | I77: 0.08% | J77: 13.90 | K77: 2.303 | L77: 1.4869 | M77: 0.6457 | P77: 4.053 | Q77: 84.30 | S77: 2.303
E78: 20.808 | F78: 4.57 | G78: 0.0217 | H78: 10.16% | I78: 0.08% | J78: 13.85 | K78: 2.310 | L78: 1.5023 | M78: 0.6503 | P78: 4.043 | Q78: 84.17 | S78: 2.310
E79: 20.955 | F79: 4.67 | G79: 0.0217 | H79: 10.38% | I79: 0.08% | J79: 13.81 | K79: 2.318 | L79: 1.5178 | M79: 0.6548 | P79: 4.033 | Q79: 84.04 | S79: 2.318
E80: 21.010 | F80: 4.77 | G80: 0.0217 | H80: 10.60% | I80: 0.08% | J80: 13.76 | K80: 2.325 | L80: 1.5267 | M80: 0.6566 | P80: 4.023 | Q80: 83.92 | S80: 2.325
E81: 20.808 | F81: 4.86 | G81: 0.0217 | H81: 10.80% | I81: 0.08% | J81: 13.72 | K81: 2.332 | L81: 1.5165 | M81: 0.6503 | P81: 4.014 | Q81: 83.80 | S81: 2.332
E82: 21.310 | F82: 4.95 | G82: 0.0217 | H82: 11.00% | I82: 0.08% | J82: 13.68 | K82: 2.339 | L82: 1.5576 | M82: 0.6659 | P82: 4.005 | Q82: 83.68 | S82: 2.339
E83: 21.555 | F83: 5.06 | G83: 0.0217 | H83: 11.24% | I83: 0.08% | J83: 13.63 | K83: 2.347 | L83: 1.5812 | M83: 0.6736 | P83: 3.994 | Q83: 83.54 | S83: 2.347
E84: 21.714 | F84: 5.16 | G84: 0.0217 | H84: 11.47% | I84: 0.08% | J84: 13.59 | K84: 2.355 | L84: 1.5981 | M84: 0.6786 | P84: 3.984 | Q84: 83.42 | S84: 2.355
E85: 21.757 | F85: 5.25 | G85: 0.0217 | H85: 11.67% | I85: 0.08% | J85: 13.55 | K85: 2.362 | L85: 1.6060 | M85: 0.6799 | P85: 3.975 | Q85: 83.30 | S85: 2.362
E86: 21.426 | F86: 5.35 | G86: 0.0217 | H86: 11.89% | I86: 0.08% | J86: 13.50 | K86: 2.370 | L86: 1.5868 | M86: 0.6696 | P86: 3.965 | Q86: 83.17 | S86: 2.370
E87: 21.402 | F87: 5.44 | G87: 0.0217 | H87: 12.09% | I87: 0.08% | J87: 13.46 | K87: 2.377 | L87: 1.5898 | M87: 0.6688 | P87: 3.956 | Q87: 83.06 | S87: 2.377
E88: 21.010 | F88: 5.55 | G88: 0.0217 | H88: 12.33% | I88: 0.08% | J88: 13.41 | K88: 2.386 | L88: 1.5664 | M88: 0.6566 | P88: 3.945 | Q88: 82.92 | S88: 2.386
E89: 21.347 | F89: 5.65 | G89: 0.0217 | H89: 12.56% | I89: 0.08% | J89: 13.37 | K89: 2.394 | L89: 1.5968 | M89: 0.6671 | P89: 3.935 | Q89: 82.79 | S89: 2.394
E90: 21.848 | F90: 5.75 | G90: 0.0217 | H90: 12.78% | I90: 0.08% | J90: 13.32 | K90: 2.402 | L90: 1.6398 | M90: 0.6828 | P90: 3.925 | Q90: 82.66 | S90: 2.402
E91: 22.063 | F91: 5.85 | G91: 0.0217 | H91: 13.00% | I91: 0.08% | J91: 13.28 | K91: 2.410 | L91: 1.6614 | M91: 0.6895 | P91: 3.915 | Q91: 82.53 | S91: 2.410
E92: 21.787 | F92: 5.94 | G92: 0.0217 | H92: 13.20% | I92: 0.08% | J92: 13.24 | K92: 2.417 | L92: 1.6457 | M92: 0.6809 | P92: 3.906 | Q92: 82.41 | S92: 2.417
E93: 21.726 | F93: 6.04 | G93: 0.0217 | H93: 13.42% | I93: 0.08% | J93: 13.19 | K93: 2.425 | L93: 1.6466 | M93: 0.6789 | P93: 3.896 | Q93: 82.29 | S93: 2.425
E94: 21.861 | F94: 6.14 | G94: 0.0227 | H94: 13.64% | I94: 0.08% | J94: 13.15 | K94: 2.433 | L94: 1.6624 | M94: 0.6831 | P94: 3.886 | Q94: 82.16 | S94: 2.433
E95: 22.222 | F95: 6.24 | G95: 0.0227 | H95: 13.87% | I95: 0.08% | J95: 13.11 | K95: 2.442 | L95: 1.6956 | M95: 0.6944 | P95: 3.876 | Q95: 82.03 | S95: 2.442
E96: 22.497 | F96: 6.35 | G96: 0.0227 | H96: 14.11% | I96: 0.08% | J96: 13.06 | K96: 2.451 | L96: 1.7231 | M96: 0.7030 | P96: 3.865 | Q96: 81.89 | S96: 2.451
E97: 22.619 | F97: 6.45 | G97: 0.0227 | H97: 14.33% | I97: 0.08% | J97: 13.01 | K97: 2.459 | L97: 1.7384 | M97: 0.7069 | P97: 3.855 | Q97: 81.76 | S97: 2.459
E98: 22.534 | F98: 6.55 | G98: 0.0227 | H98: 14.56% | I98: 0.08% | J98: 12.97 | K98: 2.468 | L98: 1.7377 | M98: 0.7042 | P98: 3.845 | Q98: 81.63 | S98: 2.468
E99: 22.411 | F99: 6.65 | G99: 0.0227 | H99: 14.78% | I99: 0.08% | J99: 12.92 | K99: 2.476 | L99: 1.7343 | M99: 0.7004 | P99: 3.835 | Q99: 81.50 | S99: 2.476
E100: 22.650 | F100: 6.75 | G100: 0.0227 | H100: 15.00% | I100: 0.08% | J100: 12.88 | K100: 2.485 | L100: 1.7588 | M100: 0.7078 | P100: 3.825 | Q100: 81.37 | S100: 2.485
E101: 22.742 | F101: 6.85 | G101: 0.0227 | H101: 15.22% | I101: 0.08% | J101: 12.83 | K101: 2.493 | L101: 1.7720 | M101: 0.7107 | P101: 3.815 | Q101: 81.24 | S101: 2.493
E102: 22.399 | F102: 6.94 | G102: 0.0227 | H102: 15.42% | I102: 0.08% | J102: 12.79 | K102: 2.501 | L102: 1.7508 | M102: 0.7000 | P102: 3.806 | Q102: 81.13 | S102: 2.501
E103: 22.705 | F103: 7.05 | G103: 0.0227 | H103: 15.67% | I103: 0.08% | J103: 12.74 | K103: 2.511 | L103: 1.7815 | M103: 0.7095 | P103: 3.795 | Q103: 80.99 | S103: 2.511
E104: 22.986 | F104: 7.14 | G104: 0.0227 | H104: 15.87% | I104: 0.08% | J104: 12.70 | K104: 2.519 | L104: 1.8093 | M104: 0.7183 | P104: 3.786 | Q104: 80.87 | S104: 2.519
E105: 23.390 | F105: 7.24 | G105: 0.0227 | H105: 16.09% | I105: 0.08% | J105: 12.66 | K105: 2.528 | L105: 1.8475 | M105: 0.7309 | P105: 3.776 | Q105: 80.74 | S105: 2.528
E106: 23.451 | F106: 7.34 | G106: 0.0227 | H106: 16.31% | I106: 0.08% | J106: 12.62 | K106: 2.536 | L106: 1.8589 | M106: 0.7329 | P106: 3.766 | Q106: 80.61 | S106: 2.536
E107: 23.458 | F107: 7.43 | G107: 0.0227 | H107: 16.51% | I107: 0.08% | J107: 12.58 | K107: 2.545 | L107: 1.8653 | M107: 0.7330 | P107: 3.757 | Q107: 80.50 | S107: 2.545
E108: 22.895 | F108: 7.53 | G108: 0.0227 | H108: 16.73% | I108: 0.08% | J108: 12.53 | K108: 2.554 | L108: 1.8269 | M108: 0.7155 | P108: 3.747 | Q108: 80.37 | S108: 2.554
E109: 22.925 | F109: 7.64 | G109: 0.0227 | H109: 16.98% | I109: 0.08% | J109: 12.48 | K109: 2.564 | L109: 1.8365 | M109: 0.7164 | P109: 3.736 | Q109: 80.23 | S109: 2.564
E110: 23.054 | F110: 7.74 | G110: 0.0227 | H110: 17.20% | I110: 0.08% | J110: 12.44 | K110: 2.573 | L110: 1.8534 | M110: 0.7204 | P110: 3.726 | Q110: 80.10 | S110: 2.573
E111: 23.476 | F111: 7.83 | G111: 0.0227 | H111: 17.40% | I111: 0.08% | J111: 12.40 | K111: 2.581 | L111: 1.8934 | M111: 0.7336 | P111: 3.717 | Q111: 79.98 | S111: 2.581
E112: 23.458 | F112: 7.93 | G112: 0.0227 | H112: 17.62% | I112: 0.08% | J112: 12.35 | K112: 2.590 | L112: 1.8987 | M112: 0.7330 | P112: 3.707 | Q112: 79.85 | S112: 2.590
E113: 23.194 | F113: 8.04 | G113: 0.0227 | H113: 17.87% | I113: 0.08% | J113: 12.31 | K113: 2.600 | L113: 1.8849 | M113: 0.7248 | P113: 3.696 | Q113: 79.71 | S113: 2.600
E114: 23.562 | F114: 8.13 | G114: 0.0227 | H114: =+((F114/10)/$G$13) -> 18.07% | I114: =((+G114/10)/$G$14) -> 0.08% | J114: =+($G$13^2/2)*(Q114*PI()/180-((F114/10)/$G$13)*SIN(Q114*PI()/180)) -> 12.27 | K114: =+$H$26/J114 -> 2.609 | L114: =+E114/J114 -> 1.9209 | M114: =+L114/K114 -> 0.7363 | P114: =+$G$13-(F114/10) -> 3.687 | Q114: =+DEGREES(ACOS((F114/10)/$G$13)) -> 79.59 | S114: =+K114 -> 2.609
E115: 23.708 | F115: 8.23 | G115: 0.0227 | H115: 18.29% | I115: 0.08% | J115: 12.22 | K115: 2.618 | L115: 1.9399 | M115: 0.7409 | P115: 3.677 | Q115: 79.46 | S115: 2.618
E116: 23.562 | F116: 8.34 | G116: 0.0227 | H116: 18.53% | I116: 0.08% | J116: 12.17 | K116: 2.629 | L116: 1.9356 | M116: 0.7363 | P116: 3.666 | Q116: 79.32 | S116: 2.629
E117: 23.623 | F117: 8.45 | G117: 0.0227 | H117: 18.78% | I117: 0.08% | J117: 12.12 | K117: 2.639 | L117: 1.9484 | M117: 0.7382 | P117: 3.655 | Q117: 79.18 | S117: 2.639
E118: 23.617 | F118: 8.55 | G118: 0.0227 | H118: 19.00% | I118: 0.08% | J118: 12.08 | K118: 2.649 | L118: 1.9550 | M118: 0.7380 | P118: 3.645 | Q118: 79.05 | S118: 2.649
E119: 23.678 | F119: 8.65 | G119: 0.0227 | H119: 19.22% | I119: 0.08% | J119: 12.04 | K119: 2.659 | L119: 1.9673 | M119: 0.7399 | P119: 3.635 | Q119: 78.92 | S119: 2.659
E120: 23.849 | F120: 8.74 | G120: 0.0227 | H120: 19.42% | I120: 0.08% | J120: 12.00 | K120: 2.668 | L120: 1.9881 | M120: 0.7453 | P120: 3.626 | Q120: 78.80 | S120: 2.668
E121: 23.861 | F121: 8.84 | G121: 0.0227 | H121: 19.64% | I121: 0.08% | J121: 11.95 | K121: 2.677 | L121: 1.9964 | M121: 0.7457 | P121: 3.616 | Q121: 78.67 | S121: 2.677
E122: 24.045 | F122: 8.93 | G122: 0.0227 | H122: 19.84% | I122: 0.08% | J122: 11.91 | K122: 2.686 | L122: 2.0185 | M122: 0.7514 | P122: 3.607 | Q122: 78.55 | S122: 2.686
E123: 23.672 | F123: 9.04 | G123: 0.0227 | H123: 20.09% | I123: 0.08% | J123: 11.86 | K123: 2.697 | L123: 1.9953 | M123: 0.7397 | P123: 3.596 | Q123: 78.41 | S123: 2.697
E124: 23.794 | F124: 9.13 | G124: 0.0227 | H124: 20.29% | I124: 0.08% | J124: 11.82 | K124: 2.706 | L124: 2.0123 | M124: 0.7436 | P124: 3.587 | Q124: 78.29 | S124: 2.706
E125: 23.849 | F125: 9.23 | G125: 0.0227 | H125: 20.51% | I125: 0.08% | J125: 11.78 | K125: 2.716 | L125: 2.0245 | M125: 0.7453 | P125: 3.577 | Q125: 78.16 | S125: 2.716
E126: 23.825 | F126: 9.33 | G126: 0.0227 | H126: 20.73% | I126: 0.08% | J126: 11.74 | K126: 2.727 | L126: 2.0300 | M126: 0.7445 | P126: 3.567 | Q126: 78.03 | S126: 2.727
E127: 23.800 | F127: 9.42 | G127: 0.0227 | H127: 20.93% | I127: 0.08% | J127: 11.70 | K127: 2.736 | L127: 2.0348 | M127: 0.7438 | P127: 3.558 | Q127: 77.92 | S127: 2.736
E128: 23.739 | F128: 9.52 | G128: 0.0227 | H128: 21.16% | I128: 0.08% | J128: 11.65 | K128: 2.746 | L128: 2.0372 | M128: 0.7418 | P128: 3.548 | Q128: 77.79 | S128: 2.746
E129: 23.543 | F129: 9.62 | G129: 0.0227 | H129: 21.38% | I129: 0.08% | J129: 11.61 | K129: 2.757 | L129: 2.0281 | M129: 0.7357 | P129: 3.538 | Q129: 77.66 | S129: 2.757
E130: 23.715 | F130: 9.72 | G130: 0.0227 | H130: 21.60% | I130: 0.08% | J130: 11.56 | K130: 2.767 | L130: 2.0506 | M130: 0.7411 | P130: 3.528 | Q130: 77.53 | S130: 2.767
E131: 23.959 | F131: 9.82 | G131: 0.0227 | H131: 21.82% | I131: 0.08% | J131: 11.52 | K131: 2.778 | L131: 2.0797 | M131: 0.7487 | P131: 3.518 | Q131: 77.40 | S131: 2.778
E132: 23.855 | F132: 9.92 | G132: 0.0227 | H132: 22.04% | I132: 0.08% | J132: 11.48 | K132: 2.788 | L132: 2.0786 | M132: 0.7455 | P132: 3.508 | Q132: 77.26 | S132: 2.788
E133: 24.045 | F133: 10.02 | G133: 0.0227 | H133: 22.27% | I133: 0.08% | J133: 11.43 | K133: 2.799 | L133: 2.1031 | M133: 0.7514 | P133: 3.498 | Q133: 77.13 | S133: 2.799
E134: 24.161 | F134: 10.12 | G134: 0.0227 | H134: 22.49% | I134: 0.08% | J134: 11.39 | K134: 2.810 | L134: 2.1214 | M134: 0.7550 | P134: 3.488 | Q134: 77.00 | S134: 2.810
E135: 24.063 | F135: 10.22 | G135: 0.0227 | H135: 22.71% | I135: 0.08% | J135: 11.35 | K135: 2.821 | L135: 2.1210 | M135: 0.7520 | P135: 3.478 | Q135: 76.87 | S135: 2.821
E136: 23.892 | F136: 10.32 | G136: 0.0227 | H136: 22.93% | I136: 0.08% | J136: 11.30 | K136: 2.832 | L136: 2.1141 | M136: 0.7466 | P136: 3.468 | Q136: 76.74 | S136: 2.832
E137: 24.039 | F137: 10.43 | G137: 0.0227 | H137: 23.18% | I137: 0.08% | J137: 11.25 | K137: 2.844 | L137: 2.1362 | M137: 0.7512 | P137: 3.457 | Q137: 76.60 | S137: 2.844
E138: 24.155 | F138: 10.53 | G138: 0.0227 | H138: 23.40% | I138: 0.08% | J138: 11.21 | K138: 2.855 | L138: 2.1549 | M138: 0.7548 | P138: 3.447 | Q138: 76.47 | S138: 2.855
E139: 23.941 | F139: 10.63 | G139: 0.0227 | H139: 23.62% | I139: 0.08% | J139: 11.17 | K139: 2.866 | L139: 2.1442 | M139: 0.7482 | P139: 3.437 | Q139: 76.34 | S139: 2.866
E140: 23.971 | F140: 10.73 | G140: 0.0227 | H140: 23.84% | I140: 0.08% | J140: 11.12 | K140: 2.877 | L140: 2.1553 | M140: 0.7491 | P140: 3.427 | Q140: 76.21 | S140: 2.877
E141: 24.027 | F141: 10.82 | G141: 0.0227 | H141: 24.04% | I141: 0.08% | J141: 11.08 | K141: 2.887 | L141: 2.1679 | M141: 0.7508 | P141: 3.418 | Q141: 76.09 | S141: 2.887
E142: 24.302 | F142: 10.92 | G142: 0.0227 | H142: 24.27% | I142: 0.08% | J142: 11.04 | K142: 2.899 | L142: 2.2015 | M142: 0.7594 | P142: 3.408 | Q142: 75.96 | S142: 2.899
E143: 24.247 | F143: 11.02 | G143: 0.0227 | H143: 24.49% | I143: 0.08% | J143: 11.00 | K143: 2.910 | L143: 2.2052 | M143: 0.7577 | P143: 3.398 | Q143: 75.82 | S143: 2.910
E144: 24.375 | F144: 11.11 | G144: 0.0227 | H144: 24.69% | I144: 0.08% | J144: 10.96 | K144: 2.921 | L144: 2.2248 | M144: 0.7617 | P144: 3.389 | Q144: 75.71 | S144: 2.921
E145: 24.320 | F145: 11.21 | G145: 0.0227 | H145: 24.91% | I145: 0.08% | J145: 10.91 | K145: 2.932 | L145: 2.2287 | M145: 0.7600 | P145: 3.379 | Q145: 75.58 | S145: 2.932
E146: 24.589 | F146: 11.31 | G146: 0.0227 | H146: 25.13% | I146: 0.08% | J146: 10.87 | K146: 2.944 | L146: 2.2624 | M146: 0.7684 | P146: 3.369 | Q146: 75.44 | S146: 2.944
E147: 24.865 | F147: 11.40 | G147: 0.0227 | H147: 25.33% | I147: 0.08% | J147: 10.83 | K147: 2.955 | L147: 2.2960 | M147: 0.7770 | P147: 3.36 | Q147: 75.33 | S147: 2.955
E148: 24.895 | F148: 11.50 | G148: 0.0227 | H148: 25.56% | I148: 0.08% | J148: 10.79 | K148: 2.967 | L148: 2.3081 | M148: 0.7780 | P148: 3.35 | Q148: 75.19 | S148: 2.967
E149: 24.908 | F149: 11.60 | G149: 0.0227 | H149: 25.78% | I149: 0.08% | J149: 10.74 | K149: 2.979 | L149: 2.3186 | M149: 0.7784 | P149: 3.34 | Q149: 75.06 | S149: 2.979
E150: 24.993 | F150: 11.70 | G150: 0.0227 | H150: 26.00% | I150: 0.08% | J150: 10.70 | K150: 2.991 | L150: 2.3360 | M150: 0.7810 | P150: 3.33 | Q150: 74.93 | S150: 2.991
E151: 24.669 | F151: 11.80 | G151: 0.0227 | H151: 26.22% | I151: 0.08% | J151: 10.66 | K151: 3.003 | L151: 2.3151 | M151: 0.7709 | P151: 3.32 | Q151: 74.80 | S151: 3.003
E152: 23.947 | F152: 11.90 | G152: 0.0227 | H152: 26.44% | I152: 0.08% | J152: 10.61 | K152: 3.015 | L152: 2.2565 | M152: 0.7483 | P152: 3.31 | Q152: 74.67 | S152: 3.015
E153: 24.173 | F153: 12.00 | G153: 0.0227 | H153: 26.67% | I153: 0.08% | J153: 10.57 | K153: 3.028 | L153: 2.2872 | M153: 0.7554 | P153: 3.3 | Q153: 74.53 | S153: 3.028
E154: 24.577 | F154: 12.10 | G154: 0.0227 | H154: 26.89% | I154: 0.08% | J154: 10.53 | K154: 3.040 | L154: 2.3350 | M154: 0.7680 | P154: 3.29 | Q154: 74.40 | S154: 3.040
E155: 25.054 | F155: 12.20 | G155: 0.0227 | H155: 27.11% | I155: 0.08% | J155: 10.48 | K155: 3.053 | L155: 2.3902 | M155: 0.7830 | P155: 3.28 | Q155: 74.27 | S155: 3.053
E156: 24.987 | F156: 12.30 | G156: 0.0227 | H156: 27.33% | I156: 0.08% | J156: 10.44 | K156: 3.065 | L156: 2.3936 | M156: 0.7808 | P156: 3.27 | Q156: 74.14 | S156: 3.065
E157: 24.583 | F157: 12.40 | G157: 0.0227 | H157: 27.56% | I157: 0.08% | J157: 10.40 | K157: 3.078 | L157: 2.3647 | M157: 0.7682 | P157: 3.26 | Q157: 74.00 | S157: 3.078
E158: 24.406 | F158: 12.51 | G158: 0.0227 | H158: 27.80% | I158: 0.08% | J158: 10.35 | K158: 3.092 | L158: 2.3585 | M158: 0.7627 | P158: 3.249 | Q158: 73.86 | S158: 3.092
E159: 24.914 | F159: 12.61 | G159: 0.0227 | H159: 28.02% | I159: 0.08% | J159: 10.30 | K159: 3.105 | L159: 2.4176 | M159: 0.7786 | P159: 3.239 | Q159: 73.73 | S159: 3.105
E160: 25.244 | F160: 12.71 | G160: 0.0227 | H160: 28.24% | I160: 0.08% | J160: 10.26 | K160: 3.118 | L160: 2.4600 | M160: 0.7889 | P160: 3.229 | Q160: 73.59 | S160: 3.118
E161: 25.220 | F161: 12.80 | G161: 0.0227 | H161: 28.44% | I161: 0.08% | J161: 10.22 | K161: 3.130 | L161: 2.4670 | M161: 0.7881 | P161: 3.22 | Q161: 73.47 | S161: 3.130
E162: 24.853 | F162: 12.90 | G162: 0.0227 | H162: 28.67% | I162: 0.08% | J162: 10.18 | K162: 3.143 | L162: 2.4413 | M162: 0.7766 | P162: 3.21 | Q162: 73.34 | S162: 3.143
E163: 25.122 | F163: 13.00 | G163: 0.0227 | H163: 28.89% | I163: 0.08% | J163: 10.14 | K163: 3.157 | L163: 2.4783 | M163: 0.7851 | P163: 3.2 | Q163: 73.21 | S163: 3.157
E164: 24.846 | F164: 13.10 | G164: 0.0227 | H164: 29.11% | I164: 0.08% | J164: 10.09 | K164: 3.170 | L164: 2.4616 | M164: 0.7765 | P164: 3.19 | Q164: 73.08 | S164: 3.170
E165: 25.122 | F165: 13.20 | G165: 0.0227 | H165: 29.33% | I165: 0.08% | J165: 10.05 | K165: 3.184 | L165: 2.4995 | M165: 0.7851 | P165: 3.18 | Q165: 72.94 | S165: 3.184
E166: 25.519 | F166: 13.29 | G166: 0.0227 | H166: 29.53% | I166: 0.08% | J166: 10.01 | K166: 3.196 | L166: 2.5489 | M166: 0.7975 | P166: 3.171 | Q166: 72.82 | S166: 3.196
E167: 25.342 | F167: 13.39 | G167: 0.0227 | H167: 29.76% | I167: 0.08% | J167: 9.97 | K167: 3.210 | L167: 2.5421 | M167: 0.7919 | P167: 3.161 | Q167: 72.69 | S167: 3.210
E168: 25.379 | F168: 13.48 | G168: 0.0227 | H168: 29.96% | I168: 0.08% | J168: 9.93 | K168: 3.222 | L168: 2.5557 | M168: 0.7931 | P168: 3.152 | Q168: 72.57 | S168: 3.222
E169: 25.183 | F169: 13.58 | G169: 0.0227 | H169: 30.18% | I169: 0.08% | J169: 9.89 | K169: 3.236 | L169: 2.5470 | M169: 0.7870 | P169: 3.142 | Q169: 72.44 | S169: 3.236
E170: 25.079 | F170: 13.69 | G170: 0.0227 | H170: 30.42% | I170: 0.08% | J170: 9.84 | K170: 3.252 | L170: 2.5486 | M170: 0.7837 | P170: 3.131 | Q170: 72.29 | S170: 3.252
E171: 25.220 | F171: 13.79 | G171: 0.0227 | H171: 30.64% | I171: 0.08% | J171: 9.80 | K171: 3.266 | L171: 2.5741 | M171: 0.7881 | P171: 3.121 | Q171: 72.15 | S171: 3.266
E172: 25.556 | F172: 13.88 | G172: 0.0227 | H172: 30.84% | I172: 0.08% | J172: 9.76 | K172: 3.279 | L172: 2.6188 | M172: 0.7986 | P172: 3.112 | Q172: 72.03 | S172: 3.279
E173: 25.538 | F173: 13.99 | G173: 0.0227 | H173: 31.09% | I173: 0.08% | J173: 9.71 | K173: 3.295 | L173: 2.6296 | M173: 0.7981 | P173: 3.101 | Q173: 71.89 | S173: 3.295
E174: 25.605 | F174: 14.08 | G174: 0.0227 | H174: 31.29% | I174: 0.08% | J174: 9.67 | K174: 3.308 | L174: 2.6470 | M174: 0.8002 | P174: 3.092 | Q174: 71.77 | S174: 3.308
E175: 25.905 | F175: 14.18 | G175: 0.0227 | H175: 31.51% | I175: 0.08% | J175: 9.63 | K175: 3.323 | L175: 2.6899 | M175: 0.8095 | P175: 3.082 | Q175: 71.63 | S175: 3.323
E176: 25.880 | F176: 14.28 | G176: 0.0227 | H176: 31.73% | I176: 0.08% | J176: 9.59 | K176: 3.338 | L176: 2.6993 | M176: 0.8088 | P176: 3.072 | Q176: 71.50 | S176: 3.338
E177: 25.813 | F177: 14.39 | G177: 0.0227 | H177: 31.98% | I177: 0.08% | J177: 9.54 | K177: 3.354 | L177: 2.7055 | M177: 0.8067 | P177: 3.061 | Q177: 71.35 | S177: 3.354
E178: 25.905 | F178: 14.49 | G178: 0.0227 | H178: =+((F178/10)/$G$13) -> 32.20% | I178: =((+G178/10)/$G$14) -> 0.08% | J178: =+($G$13^2/2)*(Q178*PI()/180-((F178/10)/$G$13)*SIN(Q178*PI()/180)) -> 9.50 | K178: =+$H$26/J178 -> 3.369 | L178: =+E178/J178 -> 2.7273 | M178: =+L178/K178 -> 0.8095 | P178: =+$G$13-(F178/10) -> 3.051 | Q178: =+DEGREES(ACOS((F178/10)/$G$13)) -> 71.22 | S178: =+K178 -> 3.369
E179: 26.058 | F179: 14.59 | G179: 0.0227 | H179: 32.42% | I179: 0.08% | J179: 9.46 | K179: 3.384 | L179: 2.7558 | M179: 0.8143 | P179: 3.041 | Q179: 71.08 | S179: 3.384
E180: 25.880 | F180: 14.69 | G180: 0.0227 | H180: 32.64% | I180: 0.08% | J180: 9.41 | K180: 3.399 | L180: 2.7494 | M180: 0.8088 | P180: 3.031 | Q180: 70.95 | S180: 3.399
E181: 25.366 | F181: 14.78 | G181: 0.0227 | H181: 32.84% | I181: 0.08% | J181: 9.37 | K181: 3.413 | L181: 2.7058 | M181: 0.7927 | P181: 3.022 | Q181: 70.83 | S181: 3.413
E182: 25.752 | F182: 14.87 | G182: 0.0227 | H182: 33.04% | I182: 0.08% | J182: 9.34 | K182: 3.427 | L182: 2.7581 | M182: 0.8047 | P182: 3.013 | Q182: 70.70 | S182: 3.427
E183: 25.825 | F183: 14.97 | G183: 0.0227 | H183: 33.27% | I183: 0.08% | J183: 9.29 | K183: 3.443 | L183: 2.7786 | M183: 0.8070 | P183: 3.003 | Q183: 70.57 | S183: 3.443
E184: 25.948 | F184: 15.07 | G184: 0.0227 | H184: 33.49% | I184: 0.08% | J184: 9.25 | K184: 3.459 | L184: 2.8046 | M184: 0.8109 | P184: 2.993 | Q184: 70.43 | S184: 3.459
E185: 26.162 | F185: 15.17 | G185: 0.0227 | H185: 33.71% | I185: 0.08% | J185: 9.21 | K185: 3.475 | L185: 2.8408 | M185: 0.8176 | P185: 2.983 | Q185: 70.30 | S185: 3.475
E186: 25.825 | F186: 15.27 | G186: 0.0227 | H186: 33.93% | I186: 0.08% | J186: 9.17 | K186: 3.491 | L186: 2.8172 | M186: 0.8070 | P186: 2.973 | Q186: 70.16 | S186: 3.491
E187: 24.938 | F187: 15.37 | G187: 0.0227 | H187: 34.16% | I187: 0.08% | J187: 9.12 | K187: 3.507 | L187: 2.7330 | M187: 0.7793 | P187: 2.963 | Q187: 70.03 | S187: 3.507
E188: 24.797 | F188: 15.46 | G188: 0.0000 | H188: 34.36% | I188: 0.00% | J188: 9.09 | K188: 3.522 | L188: 2.7290 | M188: 0.7749 | P188: 2.954 | Q188: 69.91 | S188: 3.522
E189: 25.293 | F189: 15.56 | G189: 0.0227 | H189: 34.58% | I189: 0.08% | J189: 9.04 | K189: 3.538 | L189: 2.7965 | M189: 0.7904 | P189: 2.944 | Q189: 69.77 | S189: 3.538
E190: 25.532 | F190: 15.66 | G190: 0.0227 | H190: 34.80% | I190: 0.08% | J190: 9.00 | K190: 3.555 | L190: 2.8361 | M190: 0.7979 | P190: 2.934 | Q190: 69.63 | S190: 3.555
E191: 25.366 | F191: 15.76 | G191: 0.0227 | H191: 35.02% | I191: 0.08% | J191: 8.96 | K191: 3.571 | L191: 2.8311 | M191: 0.7927 | P191: 2.924 | Q191: 69.50 | S191: 3.571
E192: 25.458 | F192: 15.86 | G192: 0.0227 | H192: 35.24% | I192: 0.08% | J192: 8.92 | K192: 3.588 | L192: 2.8547 | M192: 0.7956 | P192: 2.914 | Q192: 69.36 | S192: 3.588
E193: 25.232 | F193: 15.96 | G193: 0.0227 | H193: 35.47% | I193: 0.08% | J193: 8.88 | K193: 3.605 | L193: 2.8428 | M193: 0.7885 | P193: 2.904 | Q193: 69.23 | S193: 3.605
E194: 24.865 | F194: 16.06 | G194: 0.0227 | H194: 35.69% | I194: 0.08% | J194: 8.83 | K194: 3.622 | L194: 2.8147 | M194: 0.7770 | P194: 2.894 | Q194: 69.09 | S194: 3.622
E195: 25.354 | F195: 16.16 | G195: 0.0227 | H195: 35.91% | I195: 0.08% | J195: 8.79 | K195: 3.640 | L195: 2.8839 | M195: 0.7923 | P195: 2.884 | Q195: 68.95 | S195: 3.640
E196: 25.477 | F196: 16.26 | G196: 0.0227 | H196: 36.13% | I196: 0.08% | J196: 8.75 | K196: 3.657 | L196: 2.9117 | M196: 0.7961 | P196: 2.874 | Q196: 68.82 | S196: 3.657
E197: 25.201 | F197: 16.36 | G197: 0.0227 | H197: 36.36% | I197: 0.08% | J197: 8.71 | K197: 3.675 | L197: 2.8941 | M197: 0.7875 | P197: 2.864 | Q197: 68.68 | S197: 3.675
E198: 25.538 | F198: 16.46 | G198: 0.0227 | H198: 36.58% | I198: 0.08% | J198: 8.67 | K198: 3.693 | L198: 2.9469 | M198: 0.7981 | P198: 2.854 | Q198: 68.54 | S198: 3.693
E199: 25.734 | F199: 16.56 | G199: 0.0227 | H199: 36.80% | I199: 0.08% | J199: 8.62 | K199: 3.711 | L199: 2.9839 | M199: 0.8042 | P199: 2.844 | Q199: 68.41 | S199: 3.711
E200: 25.581 | F200: 16.66 | G200: 0.0227 | H200: 37.02% | I200: 0.08% | J200: 8.58 | K200: 3.729 | L200: 2.9806 | M200: 0.7994 | P200: 2.834 | Q200: 68.27 | S200: 3.729
E201: 25.519 | F201: 16.75 | G201: 0.0227 | H201: 37.22% | I201: 0.08% | J201: 8.54 | K201: 3.745 | L201: 2.9866 | M201: 0.7975 | P201: 2.825 | Q201: 68.15 | S201: 3.745
E202: 25.550 | F202: 16.85 | G202: 0.0227 | H202: 37.44% | I202: 0.08% | J202: 8.50 | K202: 3.763 | L202: 3.0048 | M202: 0.7984 | P202: 2.815 | Q202: 68.01 | S202: 3.763
E203: 25.250 | F203: 16.95 | G203: 0.0227 | H203: 37.67% | I203: 0.08% | J203: 8.46 | K203: 3.782 | L203: 2.9842 | M203: 0.7891 | P203: 2.805 | Q203: 67.87 | S203: 3.782
E204: 24.920 | F204: 17.05 | G204: 0.0227 | H204: 37.89% | I204: 0.08% | J204: 8.42 | K204: 3.801 | L204: 2.9598 | M204: 0.7787 | P204: 2.795 | Q204: 67.74 | S204: 3.801
E205: 25.244 | F205: 17.15 | G205: 0.0227 | H205: 38.11% | I205: 0.08% | J205: 8.38 | K205: 3.820 | L205: 3.0132 | M205: 0.7889 | P205: 2.785 | Q205: 67.60 | S205: 3.820
E206: 25.269 | F206: 17.24 | G206: 0.0227 | H206: 38.31% | I206: 0.08% | J206: 8.34 | K206: 3.837 | L206: 3.0296 | M206: 0.7896 | P206: 2.776 | Q206: 67.47 | S206: 3.837
E207: 25.360 | F207: 17.33 | G207: 0.0227 | H207: 38.51% | I207: 0.08% | J207: 8.30 | K207: 3.854 | L207: 3.0543 | M207: 0.7925 | P207: 2.767 | Q207: 67.35 | S207: 3.854
... 15 more rows

Sheet Graficos-
G3: ENSAYO DE CORTE DIRECTO
D5: Proyecto | E5: =+'CD C wn'!E6 -> 0.00 | K5: Parámetros de resistencia
E6: =+'CD A wn'!I6 -> 0.00 | H6: Sondeo | I6: =+'CD A wn'!E7 -> Sondeo 6 | L6: Pico | M6: Residual
D7: Cliente | H7: Muestra | I7: =+'CD A wn'!M6 -> Muestra 17 | K7: c(kg/cm2) | M7: =+R38 -> 0.30
H8: Fecha | I8: =+'CD A wn'!M7 -> 00:00:00 | K8: Fi (º) | M8: =+Q38 -> 40
Q20: tabla de Residual
Q21: =+'CD A wn'!$K$31 -> 0.50 | R21: =+'CD A wn'!$L$31 -> 0.00 | T21: =+'CD B wn'!$K$31 -> 0.94 | U21: =+'CD B wn'!$L$31 -> 0.00 | W21: =+'CD C wn'!$K$31 -> 2.01 | X21: =+'CD C wn'!$L$31 -> 0.00
P22: ensayo 1 | Q22: =+'CD A wn'!$K$209 -> 0.61 | R22: =+'CD A wn'!$L$209 -> 0.45 | S22: ensayo 2 | T22: =+'CD B wn'!$K$272 -> 1.15 | U22: =+'CD B wn'!$L$272 -> 0.52 | V22: ensayo 3 | W22: =+'CD C wn'!$K$249 -> 2.45 | X22: =+'CD C wn'!$L$249 -> 1.11
Q23: Normal | R23: Cortante | T23: Normal | U23: Cortante | W23: Normal | X23: Cortante
Q25: tabla de picos
Q26: =+'CD A wn'!$K$31 -> 0.50 | R26: =+'CD A wn'!$L$31 -> 0.00 | T26: =+'CD B wn'!$K$31 -> 0.94 | U26: =+'CD B wn'!$L$31 -> 0.00 | W26: =+'CD C wn'!$K$31 -> 2.01 | X26: =+'CD C wn'!$L$31 -> 0.00
P27: ensayo 1 | Q27: =+'CD A wn'!$K$208 -> 0.61 | R27: =+'CD A wn'!$L$208 -> 0.85 | S27: ensayo 2 | T27: =+'CD B wn'!$K$271 -> 1.15 | U27: =+'CD B wn'!$L$271 -> 0.61 | V27: ensayo 3 | W27: =+'CD C wn'!$K$248 -> 2.44 | X27: =+'CD C wn'!$L$248 -> 1.47
Q28: Normal | R28: Cortante | T28: Normal | U28: Cortante | W28: Normal | X28: Cortante
P32: pendiente | Q32: phi | R32: C Kg/cm2 | S32: Nivel de deformacion | T32: S | U32: T | V32: S | W32: T
O33: TANGENTE | P33: =SLOPE(R46:R48,Q46:Q48) -> 0.6581103561 | Q33: =+DEGREES(ATAN(P33)) -> 33.34932867 | R33: =+Q50 -> 0.4215182
O38: RESIDUAL | P38: =SLOPE(U46:U48,T46:T48) -> 0.8286180631 | Q38: =+DEGREES(ATAN(P38)) -> 39.64575922 | R38: =+T50 -> 0.2970620
T44: OJO MODIFICAR CON EL MINIMO DESPUES DEL MAXIMO
Q45: RECTA TANGENTE | T45: RECTA Residual
Q46: 0.75 | R46: =+R27 -> 0.85 | T46: 0.00 | U46: 0.30
Q47: 1.50 | R47: 1.50 | T47: 1.70 | U47: 1.70
Q48: 3.50 | R48: 2.70 | T48: =+Q48 -> 3.50 | U48: 3.20
Q49: 0 | R49: 0
Q50: =INTERCEPT(R46:R48,Q46:Q48) -> 0.4215181921 | T50: =INTERCEPT(U46:U48,T46:T48) -> 0.2970620239
P69: 1.89
P70: 9 | Q70: =+P70*100 -> 900
Q71: =+Q70*P69 -> 1701
Q72: =+Q71/1000 -> 1.701
J89: Revisado y Aprobado:
E90: Laboratorista | K90: I.C. GERMAN DARÍO TAPIA MUÑOZ
K91: M.P. 25202-60095 CND (Secc. C/marca)
